{"text_format":"1","workbook":"xlsx","n_sheets":8,"sheets":["Marks","Grade 1","Grade 2","Grade 3","Grade 4","Grade 5","Grade 6","Certificates"],"not_rendered":{"charts":0,"images":8,"macros":1,"external_links":1,"defined_names":16,"comments":0,"pivot_tables":0},"unopened":[],"bounds":{"document_bytes":16777216,"sheet_cells":100000,"rows_first":2000,"rows_last":500,"rows_between":2000,"halvings":0,"cell_chars":16384,"cell_head_chars":4096},"cells_cut":0,"cells_raw":0,"read":"whole","date_system":"1900"}

{"sheet":"Marks","index":0,"n_rows":104,"n_cols":54,"rows_kept":104,"cut":false,"hidden":false,"merged":[[0,13,1,14],[0,15,1,18],[0,31,1,32],[0,33,1,34],[3,5,3,12],[3,17,3,24],[3,34,4,34]]}
["2020-2021",null,null,null,null,null,null,null,null,null,null,null,null,"First ",null,"Semester",null,null,null,null,null,null,null,null,null,null,null,null,null,null,null,"Students Number",null,{"$f":"COUNT(B7:B97)","v":17}]
[null,null,""]
[0,1,2,3,4,5,6,7,8,9,10,11,12,13,14,15,16,17,18,19,20,21,22,23,24,25,26,27,28,29,30,31,32,33,34]
[null,null,null,null,null,"Arabic",null,null,null,null,null,null,null,null,null,null,null,"English",null,null,null,null,null,null,null,null,null,null,null,null,null,null,null,null,"Rank"]
[null,null,null,null,null,"قراءة","تعبير شفهي","إصغاء","إستظهار","إملاء","قواعد","تحليل نص","تعبير كتابي","خط ونسخ","تربية مدنية","جغرافيا","تاريخ ","Reading","Oral Com","Listening","Poem","Dictation","Grammar","Read Com","Writing","Penmanship","Maths","Biology","Chemistry","Physics","Sports","Arts","Skills","Total Marks"]
["Adm No.","Roll No.","Name","Class","Section",10,10,10,10,10,10,10,10,10,20,20,20,10,10,10,10,10,10,10,10,10,60,30,30,30,10,10,10,{"$f":"SUM(F6:AG6)","v":420}]
[1,220,"Omar Ahmad Zein","Grade 1","A",8,2,3,8,2,3,4,2,8,18,15,18,2,2,2,4,2,4,4,6,9,38,18,18,18,11,9,5,243,{"$f":"RANK(AH7,$AH$7:$AH$95,0)","v":7},null,null,null,null,null,null,null,null,null,null,null,null,null,null,null,null,null,"YELLOW","A"]
[2,221,"Ahmad Mohammed Yuness","Grade 2","A",2,3,4,5,6,7,8,9,10,11,12,13,14,15,16,17,18,19,20,21,22,23,24,25,26,27,28,29,434,1,null,null,null,null,null,null,null,null,null,null,null,null,null,null,null,null,null,"FARMERS","B"]
[3,222,"Zouheir hasan Wazni","Grade 3","B",2,2,2,5,3,4,4,2,9,18,15,15,2,2,2,5,2,5,5,7,9,35,17,20,20,16,9,9,246,3,null,null,null,null,null,null,null,null,null,null,null,null,null,null,null,null,null,"BUS-MABSOUT","C"]
[4,223,"Sara Ali Ballot","Grade 4","C",2,2,2,5,2,4,4,2,9,15,14,15,2,2,2,5,2,4,4,2,8,36,19,15,19,18,7,9,230,14,null,null,null,null,null,null,null,null,null,null,null,null,null,null,null,null,null,"BLOOMERS","D"]
[5,224,"Saad eddin Syufi","Grade 5","D",2,2,2,5,2,4,4,4,9,15,14,14,2,4,4,5,2,4,4,3,7,30,18,18,15,19,8,8,228,15,null,null,null,null,null,null,null,null,null,null,null,null,null,null,null,null,null,"CACTUS","E"]
[6,225,"Ali  Mohammed Safar","Grade 8","E",2,2,3,5,2,4,4,4,8,15,18,16,2,4,4,5,2,4,4,3,9,32,18,15,17,20,9,6,237,11,null,null,null,null,null,null,null,null,null,null,null,null,null,null,null,null,null,"EDISON","F"]
[7,226,"Ali Naser Slim","Grade 8","F",2,2,3,5,2,4,4,2,7,14,19,18,5,2,2,5,2,2,2,5,8,38,19,17,19,8,9,8,233,13]
[8,227,"Mohammed Ali Saad","Grade 7","C",2,2,2,5,2,4,4,4,7,16,20,19,2,5,5,5,2,5,5,5,9,39,20,16,19,15,8,6,253,2]
[9,228,"Samir Ahmad Doulani","Grade 6","C",2,2,2,5,2,4,3,2,5,8,7,6,2,2,3,6,3,3,2,2,5,12,8,11,8,8,5,5,133,17]
[10,229,"Samira ali naser","Grade 6","A",2,2,3,6,6,3,4,3,9,19,15,14,1.5,3,3,6,2,3,3,2,8,37,18,19,17,19,8,10,245.5,4]
[11,230,"Sanaa Mohammad ali","Grade 2","B",2,2,3,7,6,4,3,3,9,20,17,15,2,3,3,6,2,3,3,2,9,35,17,20,17,19,8,5,245,5]
[12,231,"Sawsan Amin taha","Grade 1","A",2,2,5,2,2,4,4,4,8,14,19,17,3,5,5,5,2,3,3,2,8,32,19,19,17,18,9,5,238,10]
[13,232,"Kasem Ali Humaydan","Grade 4","B",2,2,3,2,2,3,4,5,6,15,19,19,3,5,4,5,2,3,3,2,9,36,19,15,17,20,10,9,244,6]
[14,234,"Majed Yaser el Hoss","Grade 8","E",2,2,2,8,2,4,4,2,5,15,14,12,2,2,3,3,3,3,2,2,5,15,10,11,8,8,5,5,159,16]
[15,235,"Hasan Ali Ali","Grade 3","F",2,2,2,2,2,4,4,2,9,19,16,18,2,2,2,4,2,2,2,2,10,40,19,19,18,17,8,9,240,9]
[16,236,"Mahmoud Yaser Ali","Grade 1","D",2,2,3,5,2,4,4,2,9,18,16,18,2,2,2,3,2,2,2,2,9,40,17,18,19,16,7,9,237,11]
[17,237,"Jamal Ali Saleh","Grade 1","D",2,2,3,4,3,3,2,4,9,19,16,19,2,2,2,3,2,3,2,2,9,38,17,20,18,18,8,9,241,8]
[18,null,null,null,null,null,null,null,null,null,null,null,null,null,null,null,null,null,null,null,null,null,null,null,null,null,null,null,null,null,null,null,null,0,18]
[19,null,null,null,null,null,null,null,null,null,null,null,null,null,null,null,null,null,null,null,null,null,null,null,null,null,null,null,null,null,null,null,null,0,18]
[20,null,null,null,null,null,null,null,null,null,null,null,null,null,null,null,null,null,null,null,null,null,null,null,null,null,null,null,null,null,null,null,null,0,18]
[21,null,null,null,null,null,null,null,null,null,null,null,null,null,null,null,null,null,null,null,null,null,null,null,null,null,null,null,null,null,null,null,null,0,18]
[22,null,null,null,null,null,null,null,null,null,null,null,null,null,null,null,null,null,null,null,null,null,null,null,null,null,null,null,null,null,null,null,null,0,18]
[23,null,null,null,null,null,null,null,null,null,null,null,null,null,null,null,null,null,null,null,null,null,null,null,null,null,null,null,null,null,null,null,null,0,18]
[24,null,null,null,null,null,null,null,null,null,null,null,null,null,null,null,null,null,null,null,null,null,null,null,null,null,null,null,null,null,null,null,null,0,18]
[25,null,null,null,null,null,null,null,null,null,null,null,null,null,null,null,null,null,null,null,null,null,null,null,null,null,null,null,null,null,null,null,null,0,18]
[26,null,null,null,null,null,null,null,null,null,null,null,null,null,null,null,null,null,null,null,null,null,null,null,null,null,null,null,null,null,null,null,null,0,18]
[27,null,null,null,null,null,null,null,null,null,null,null,null,null,null,null,null,null,null,null,null,null,null,null,null,null,null,null,null,null,null,null,null,0,18]
[28,null,null,null,null,null,null,null,null,null,null,null,null,null,null,null,null,null,null,null,null,null,null,null,null,null,null,null,null,null,null,null,null,0,18]
[29,null,null,null,null,null,null,null,null,null,null,null,null,null,null,null,null,null,null,null,null,null,null,null,null,null,null,null,null,null,null,null,null,0,18]
[30,null,null,null,null,null,null,null,null,null,null,null,null,null,null,null,null,null,null,null,null,null,null,null,null,null,null,null,null,null,null,null,null,0,18]
[31,null,null,null,null,null,null,null,null,null,null,null,null,null,null,null,null,null,null,null,null,null,null,null,null,null,null,null,null,null,null,null,null,0,18]
[32,null,null,null,null,null,null,null,null,null,null,null,null,null,null,null,null,null,null,null,null,null,null,null,null,null,null,null,null,null,null,null,null,{"$f":"SUM(F38:AG38)","v":0},18]
[33,null,null,null,null,null,null,null,null,null,null,null,null,null,null,null,null,null,null,null,null,null,null,null,null,null,null,null,null,null,null,null,null,0,{"$f":"RANK(AH39,$AH$7:$AH$95,0)","v":18}]
[34,null,null,null,null,null,null,null,null,null,null,null,null,null,null,null,null,null,null,null,null,null,null,null,null,null,null,null,null,null,null,null,null,0,18]
[35,null,null,null,null,null,null,null,null,null,null,null,null,null,null,null,null,null,null,null,null,null,null,null,null,null,null,null,null,null,null,null,null,0,18]
[36,null,null,null,null,null,null,null,null,null,null,null,null,null,null,null,null,null,null,null,null,null,null,null,null,null,null,null,null,null,null,null,null,0,18]
[37,null,null,null,null,null,null,null,null,null,null,null,null,null,null,null,null,null,null,null,null,null,null,null,null,null,null,null,null,null,null,null,null,0,18]
[38,null,null,null,null,null,null,null,null,null,null,null,null,null,null,null,null,null,null,null,null,null,null,null,null,null,null,null,null,null,null,null,null,0,18]
[39,null,null,null,null,null,null,null,null,null,null,null,null,null,null,null,null,null,null,null,null,null,null,null,null,null,null,null,null,null,null,null,null,0,18]
[40,null,null,null,null,null,null,null,null,null,null,null,null,null,null,null,null,null,null,null,null,null,null,null,null,null,null,null,null,null,null,null,null,0,18]
[41,null,null,null,null,null,null,null,null,null,null,null,null,null,null,null,null,null,null,null,null,null,null,null,null,null,null,null,null,null,null,null,null,0,18]
[42,null,null,null,null,null,null,null,null,null,null,null,null,null,null,null,null,null,null,null,null,null,null,null,null,null,null,null,null,null,null,null,null,0,18]
[43,null,null,null,null,null,null,null,null,null,null,null,null,null,null,null,null,null,null,null,null,null,null,null,null,null,null,null,null,null,null,null,null,0,18]
[44,null,null,null,null,null,null,null,null,null,null,null,null,null,null,null,null,null,null,null,null,null,null,null,null,null,null,null,null,null,null,null,null,0,18]
[45,null,null,null,null,null,null,null,null,null,null,null,null,null,null,null,null,null,null,null,null,null,null,null,null,null,null,null,null,null,null,null,null,0,18]
[46,null,null,null,null,null,null,null,null,null,null,null,null,null,null,null,null,null,null,null,null,null,null,null,null,null,null,null,null,null,null,null,null,0,18]
[47,null,null,null,null,null,null,null,null,null,null,null,null,null,null,null,null,null,null,null,null,null,null,null,null,null,null,null,null,null,null,null,null,0,18]
[48,null,null,null,null,null,null,null,null,null,null,null,null,null,null,null,null,null,null,null,null,null,null,null,null,null,null,null,null,null,null,null,null,0,18]
[49,null,null,null,null,null,null,null,null,null,null,null,null,null,null,null,null,null,null,null,null,null,null,null,null,null,null,null,null,null,null,null,null,0,18]
[50,null,null,null,null,null,null,null,null,null,null,null,null,null,null,null,null,null,null,null,null,null,null,null,null,null,null,null,null,null,null,null,null,0,18]
[51,null,null,null,null,null,null,null,null,null,null,null,null,null,null,null,null,null,null,null,null,null,null,null,null,null,null,null,null,null,null,null,null,0,18]
[52,null,null,null,null,null,null,null,null,null,null,null,null,null,null,null,null,null,null,null,null,null,null,null,null,null,null,null,null,null,null,null,null,0,18]
[53,null,null,null,null,null,null,null,null,null,null,null,null,null,null,null,null,null,null,null,null,null,null,null,null,null,null,null,null,null,null,null,null,0,18]
[54,null,null,null,null,null,null,null,null,null,null,null,null,null,null,null,null,null,null,null,null,null,null,null,null,null,null,null,null,null,null,null,null,0,18]
[55,null,null,null,null,null,null,null,null,null,null,null,null,null,null,null,null,null,null,null,null,null,null,null,null,null,null,null,null,null,null,null,null,0,18]
[56,null,null,null,null,null,null,null,null,null,null,null,null,null,null,null,null,null,null,null,null,null,null,null,null,null,null,null,null,null,null,null,null,0,18]
[57,null,null,null,null,null,null,null,null,null,null,null,null,null,null,null,null,null,null,null,null,null,null,null,null,null,null,null,null,null,null,null,null,0,18]
[58,null,null,null,null,null,null,null,null,null,null,null,null,null,null,null,null,null,null,null,null,null,null,null,null,null,null,null,null,null,null,null,null,0,18]
[59,null,null,null,null,null,null,null,null,null,null,null,null,null,null,null,null,null,null,null,null,null,null,null,null,null,null,null,null,null,null,null,null,0,18]
[60,null,null,null,null,null,null,null,null,null,null,null,null,null,null,null,null,null,null,null,null,null,null,null,null,null,null,null,null,null,null,null,null,0,18]
[61,null,null,null,null,null,null,null,null,null,null,null,null,null,null,null,null,null,null,null,null,null,null,null,null,null,null,null,null,null,null,null,null,0,18]
[62,null,null,null,null,null,null,null,null,null,null,null,null,null,null,null,null,null,null,null,null,null,null,null,null,null,null,null,null,null,null,null,null,0,18]
[63,null,null,null,null,null,null,null,null,null,null,null,null,null,null,null,null,null,null,null,null,null,null,null,null,null,null,null,null,null,null,null,null,0,18]
[64,null,null,null,null,null,null,null,null,null,null,null,null,null,null,null,null,null,null,null,null,null,null,null,null,null,null,null,null,null,null,null,null,{"$f":"SUM(F70:AG70)","v":0},18]
[65,null,null,null,null,null,null,null,null,null,null,null,null,null,null,null,null,null,null,null,null,null,null,null,null,null,null,null,null,null,null,null,null,0,{"$f":"RANK(AH71,$AH$7:$AH$95,0)","v":18}]
[66,null,null,null,null,null,null,null,null,null,null,null,null,null,null,null,null,null,null,null,null,null,null,null,null,null,null,null,null,null,null,null,null,0,18]
[67,null,null,null,null,null,null,null,null,null,null,null,null,null,null,null,null,null,null,null,null,null,null,null,null,null,null,null,null,null,null,null,null,0,18]
[68,null,null,null,null,null,null,null,null,null,null,null,null,null,null,null,null,null,null,null,null,null,null,null,null,null,null,null,null,null,null,null,null,0,18]
[69,null,null,null,null,null,null,null,null,null,null,null,null,null,null,null,null,null,null,null,null,null,null,null,null,null,null,null,null,null,null,null,null,0,18]
[70,null,null,null,null,null,null,null,null,null,null,null,null,null,null,null,null,null,null,null,null,null,null,null,null,null,null,null,null,null,null,null,null,0,18]
[71,null,null,null,null,null,null,null,null,null,null,null,null,null,null,null,null,null,null,null,null,null,null,null,null,null,null,null,null,null,null,null,null,0,18]
[72,null,null,null,null,null,null,null,null,null,null,null,null,null,null,null,null,null,null,null,null,null,null,null,null,null,null,null,null,null,null,null,null,0,18]
[73,null,null,null,null,null,null,null,null,null,null,null,null,null,null,null,null,null,null,null,null,null,null,null,null,null,null,null,null,null,null,null,null,0,18]
[74,null,null,null,null,null,null,null,null,null,null,null,null,null,null,null,null,null,null,null,null,null,null,null,null,null,null,null,null,null,null,null,null,0,18]
[75,null,null,null,null,null,null,null,null,null,null,null,null,null,null,null,null,null,null,null,null,null,null,null,null,null,null,null,null,null,null,null,null,0,18]
[76,null,null,null,null,null,null,null,null,null,null,null,null,null,null,null,null,null,null,null,null,null,null,null,null,null,null,null,null,null,null,null,null,0,18]
[77,null,null,null,null,null,null,null,null,null,null,null,null,null,null,null,null,null,null,null,null,null,null,null,null,null,null,null,null,null,null,null,null,0,18]
[78,null,null,null,null,null,null,null,null,null,null,null,null,null,null,null,null,null,null,null,null,null,null,null,null,null,null,null,null,null,null,null,null,0,18]
[79,null,null,null,null,null,null,null,null,null,null,null,null,null,null,null,null,null,null,null,null,null,null,null,null,null,null,null,null,null,null,null,null,0,18]
[80,null,null,null,null,null,null,null,null,null,null,null,null,null,null,null,null,null,null,null,null,null,null,null,null,null,null,null,null,null,null,null,null,0,18]
[81,null,null,null,null,null,null,null,null,null,null,null,null,null,null,null,null,null,null,null,null,null,null,null,null,null,null,null,null,null,null,null,null,0,18]
[82,null,null,null,null,null,null,null,null,null,null,null,null,null,null,null,null,null,null,null,null,null,null,null,null,null,null,null,null,null,null,null,null,0,18]
[83,null,null,null,null,null,null,null,null,null,null,null,null,null,null,null,null,null,null,null,null,null,null,null,null,null,null,null,null,null,null,null,null,0,18]
[84,null,null,null,null,null,null,null,null,null,null,null,null,null,null,null,null,null,null,null,null,null,null,null,null,null,null,null,null,null,null,null,null,0,18]
[85,null,null,null,null,null,null,null,null,null,null,null,null,null,null,null,null,null,null,null,null,null,null,null,null,null,null,null,null,null,null,null,null,0,18]
[86,null,null,null,null,null,null,null,null,null,null,null,null,null,null,null,null,null,null,null,null,null,null,null,null,null,null,null,null,null,null,null,null,0,18]
[87,null,null,null,null,null,null,null,null,null,null,null,null,null,null,null,null,null,null,null,null,null,null,null,null,null,null,null,null,null,null,null,null,0,18]
[88,null,null,null,null,null,null,null,null,null,null,null,null,null,null,null,null,null,null,null,null,null,null,null,null,null,null,null,null,null,null,null,null,0,18]
[89,null,null,null,null,null,null,null,null,null,null,null,null,null,null,null,null,null,null,null,null,null,null,null,null,null,null,null,null,null,null,null,null,0,18]
[90,null,null,null,null,null,null,null,null,null,null,null,null,null,null,null,null,null,null,null,null,null,null,null,null,null,null,null,null,null,null,null,null,0,18]
[91,null,null,null,null,null,null,null,null,null,null,null,null,null,null,null,null,null,null,null,null,null,null,null,null,null,null,null,null,null,null,null,null,0,18]
[92,null,null,null,null,null,null,null,null,null,null,null,null,null,null,null,null,null,null,null,null,null,null,null,null,null,null,null,null,null,null,null,null,0,18]
[93,null,null,null,null,null,null,null,null,null,null,null,null,null,null,null,null,null,null,null,null,null,null,null,null,null,null,null,null,null,null,null,null,0,18]
[94,null,null,null,null,null,null,null,null,null,null,null,null,null,null,null,null,null,null,null,null,null,null,null,null,null,null,null,null,null,null,null,null,0,18]
[95,null,null,null,null,null,null,null,null,null,null,null,null,null,null,null,null,null,null,null,null,null,null,null,null,null,null,null,null,null,null,null,null,0,18]
[96,null,null,null,null,null,null,null,null,null,null,null,null,null,null,null,null,null,null,null,null,null,null,null,null,null,null,null,null,null,null,null,null,{"$f":"SUM(F102:AG102)","v":0},18]
[97,null,null,null,null,null,null,null,null,null,null,null,null,null,null,null,null,null,null,null,null,null,null,null,null,null,null,null,null,null,null,null,null,0,{"$f":"RANK(AH103,$AH$7:$AH$95,0)","v":18}]
[98,null,null,null,null,null,null,null,null,null,null,null,null,null,null,null,null,null,null,null,null,null,null,null,null,null,null,null,null,null,null,null,null,0,18]

{"sheet":"Grade 1","index":1,"n_rows":104,"n_cols":49,"rows_kept":104,"cut":false,"hidden":false,"merged":[[0,26,1,27],[0,28,1,29],[3,5,3,12],[3,14,3,21],[3,29,4,29]]}
[null,null,null,null,null,null,null,null,null,null,null,null,null,"First SEMESTER",null,null,null,null,null,null,null,null,null,null,null,null,"Students Number",null,{"$f":"COUNT(B7:B97)","v":0}]
[null,null,""]
[0,1,2,3,4,5,6,7,8,9,10,11,12,13,14,15,16,17,18,19,20,21,22,23,24,25,26,27,28,29]
[null,null,null,null,null,"Arabic",null,null,null,null,null,null,null,null,"English",null,null,null,null,null,null,null,null,null,null,null,null,null,null,"Rank"]
[null,null,null,null,null,"قراءة","تعبير شفهي","إصغاء","إستظهار","إملاء","قواعد","تحليل نص","تعبير كتابي","خط ونسخ","Reading","Oral Com","Listening","Poem","Dictation","Phonics","Read Com","Writing","Penmanship","Maths","Siences","Sports","Arts","Skills","Total Marks"]
["Adm No.","Roll No.","Name","Class","Section",10,10,10,10,10,10,10,10,10,10,10,10,10,10,10,10,10,10,60,30,10,10,10,{"$f":"SUM(F6:AB6)","v":300}]
[1,null,null,null,null,null,null,null,null,null,null,null,null,null,null,null,null,null,null,null,null,null,null,null,null,null,null,null,0,{"$f":"RANK(AC7,$AC$7:$AC$150,0)","v":1},null,null,null,null,null,null,null,null,null,null,null,null,null,null,null,null,null,"YELLOW","A"]
[2,null,null,null,null,null,null,null,null,null,null,null,null,null,null,null,null,null,null,null,null,null,null,null,null,null,null,null,0,{"$f":"RANK(AC8,$AC$7:$AC$150,0)","v":1},null,null,null,null,null,null,null,null,null,null,null,null,null,null,null,null,null,"FARMERS","B"]
[3,null,null,null,null,null,null,null,null,null,null,null,null,null,null,null,null,null,null,null,null,null,null,null,null,null,null,null,0,1,null,null,null,null,null,null,null,null,null,null,null,null,null,null,null,null,null,"BUS-MABSOUT","C"]
[4,null,null,null,null,null,null,null,null,null,null,null,null,null,null,null,null,null,null,null,null,null,null,null,null,null,null,null,0,1,null,null,null,null,null,null,null,null,null,null,null,null,null,null,null,null,null,"BLOOMERS","D"]
[5,null,null,null,null,null,null,null,null,null,null,null,null,null,null,null,null,null,null,null,null,null,null,null,null,null,null,null,0,1,null,null,null,null,null,null,null,null,null,null,null,null,null,null,null,null,null,"CACTUS","E"]
[6,null,null,null,null,null,null,null,null,null,null,null,null,null,null,null,null,null,null,null,null,null,null,null,null,null,null,null,0,1,null,null,null,null,null,null,null,null,null,null,null,null,null,null,null,null,null,"EDISON","F"]
[7,null,null,null,null,null,null,null,null,null,null,null,null,null,null,null,null,null,null,null,null,null,null,null,null,null,null,null,0,1]
[8,null,null,null,null,null,null,null,null,null,null,null,null,null,null,null,null,null,null,null,null,null,null,null,null,null,null,null,0,1]
[9,null,null,null,null,null,null,null,null,null,null,null,null,null,null,null,null,null,null,null,null,null,null,null,null,null,null,null,0,1]
[10,null,null,null,null,null,null,null,null,null,null,null,null,null,null,null,null,null,null,null,null,null,null,null,null,null,null,null,0,1]
[11,null,null,null,null,null,null,null,null,null,null,null,null,null,null,null,null,null,null,null,null,null,null,null,null,null,null,null,0,1]
[12,null,null,null,null,null,null,null,null,null,null,null,null,null,null,null,null,null,null,null,null,null,null,null,null,null,null,null,0,1]
[13,null,null,null,null,null,null,null,null,null,null,null,null,null,null,null,null,null,null,null,null,null,null,null,null,null,null,null,0,1]
[14,null,null,null,null,null,null,null,null,null,null,null,null,null,null,null,null,null,null,null,null,null,null,null,null,null,null,null,0,1]
[15,null,null,null,null,null,null,null,null,null,null,null,null,null,null,null,null,null,null,null,null,null,null,null,null,null,null,null,0,1]
[16,null,null,null,null,null,null,null,null,null,null,null,null,null,null,null,null,null,null,null,null,null,null,null,null,null,null,null,0,1]
[17,null,null,null,null,null,null,null,null,null,null,null,null,null,null,null,null,null,null,null,null,null,null,null,null,null,null,null,0,1]
[18,null,null,null,null,null,null,null,null,null,null,null,null,null,null,null,null,null,null,null,null,null,null,null,null,null,null,null,0,1]
[19,null,null,null,null,null,null,null,null,null,null,null,null,null,null,null,null,null,null,null,null,null,null,null,null,null,null,null,0,1]
[20,null,null,null,null,null,null,null,null,null,null,null,null,null,null,null,null,null,null,null,null,null,null,null,null,null,null,null,0,1]
[21,null,null,null,null,null,null,null,null,null,null,null,null,null,null,null,null,null,null,null,null,null,null,null,null,null,null,null,0,1]
[22,null,null,null,null,null,null,null,null,null,null,null,null,null,null,null,null,null,null,null,null,null,null,null,null,null,null,null,0,1]
[23,null,null,null,null,null,null,null,null,null,null,null,null,null,null,null,null,null,null,null,null,null,null,null,null,null,null,null,0,1]
[24,null,null,null,null,null,null,null,null,null,null,null,null,null,null,null,null,null,null,null,null,null,null,null,null,null,null,null,0,1]
[25,null,null,null,null,null,null,null,null,null,null,null,null,null,null,null,null,null,null,null,null,null,null,null,null,null,null,null,0,1]
[26,null,null,null,null,null,null,null,null,null,null,null,null,null,null,null,null,null,null,null,null,null,null,null,null,null,null,null,0,1]
[27,null,null,null,null,null,null,null,null,null,null,null,null,null,null,null,null,null,null,null,null,null,null,null,null,null,null,null,0,1]
[28,null,null,null,null,null,null,null,null,null,null,null,null,null,null,null,null,null,null,null,null,null,null,null,null,null,null,null,0,1]
[29,null,null,null,null,null,null,null,null,null,null,null,null,null,null,null,null,null,null,null,null,null,null,null,null,null,null,null,0,1]
[30,null,null,null,null,null,null,null,null,null,null,null,null,null,null,null,null,null,null,null,null,null,null,null,null,null,null,null,0,1]
[31,null,null,null,null,null,null,null,null,null,null,null,null,null,null,null,null,null,null,null,null,null,null,null,null,null,null,null,0,1]
[32,null,null,null,null,null,null,null,null,null,null,null,null,null,null,null,null,null,null,null,null,null,null,null,null,null,null,null,{"$f":"SUM(F38:AB38)","v":0},1]
[33,null,null,null,null,null,null,null,null,null,null,null,null,null,null,null,null,null,null,null,null,null,null,null,null,null,null,null,0,1]
[34,null,null,null,null,null,null,null,null,null,null,null,null,null,null,null,null,null,null,null,null,null,null,null,null,null,null,null,0,1]
[35,null,null,null,null,null,null,null,null,null,null,null,null,null,null,null,null,null,null,null,null,null,null,null,null,null,null,null,0,1]
[36,null,null,null,null,null,null,null,null,null,null,null,null,null,null,null,null,null,null,null,null,null,null,null,null,null,null,null,0,1]
[37,null,null,null,null,null,null,null,null,null,null,null,null,null,null,null,null,null,null,null,null,null,null,null,null,null,null,null,0,1]
[38,null,null,null,null,null,null,null,null,null,null,null,null,null,null,null,null,null,null,null,null,null,null,null,null,null,null,null,0,1]
[39,null,null,null,null,null,null,null,null,null,null,null,null,null,null,null,null,null,null,null,null,null,null,null,null,null,null,null,0,1]
[40,null,null,null,null,null,null,null,null,null,null,null,null,null,null,null,null,null,null,null,null,null,null,null,null,null,null,null,0,1]
[41,null,null,null,null,null,null,null,null,null,null,null,null,null,null,null,null,null,null,null,null,null,null,null,null,null,null,null,0,1]
[42,null,null,null,null,null,null,null,null,null,null,null,null,null,null,null,null,null,null,null,null,null,null,null,null,null,null,null,0,1]
[43,null,null,null,null,null,null,null,null,null,null,null,null,null,null,null,null,null,null,null,null,null,null,null,null,null,null,null,0,1]
[44,null,null,null,null,null,null,null,null,null,null,null,null,null,null,null,null,null,null,null,null,null,null,null,null,null,null,null,0,1]
[45,null,null,null,null,null,null,null,null,null,null,null,null,null,null,null,null,null,null,null,null,null,null,null,null,null,null,null,0,1]
[46,null,null,null,null,null,null,null,null,null,null,null,null,null,null,null,null,null,null,null,null,null,null,null,null,null,null,null,0,1]
[47,null,null,null,null,null,null,null,null,null,null,null,null,null,null,null,null,null,null,null,null,null,null,null,null,null,null,null,0,1]
[48,null,null,null,null,null,null,null,null,null,null,null,null,null,null,null,null,null,null,null,null,null,null,null,null,null,null,null,0,1]
[49,null,null,null,null,null,null,null,null,null,null,null,null,null,null,null,null,null,null,null,null,null,null,null,null,null,null,null,0,1]
[50,null,null,null,null,null,null,null,null,null,null,null,null,null,null,null,null,null,null,null,null,null,null,null,null,null,null,null,0,1]
[51,null,null,null,null,null,null,null,null,null,null,null,null,null,null,null,null,null,null,null,null,null,null,null,null,null,null,null,0,1]
[52,null,null,null,null,null,null,null,null,null,null,null,null,null,null,null,null,null,null,null,null,null,null,null,null,null,null,null,0,1]
[53,null,null,null,null,null,null,null,null,null,null,null,null,null,null,null,null,null,null,null,null,null,null,null,null,null,null,null,0,1]
[54,null,null,null,null,null,null,null,null,null,null,null,null,null,null,null,null,null,null,null,null,null,null,null,null,null,null,null,0,1]
[55,null,null,null,null,null,null,null,null,null,null,null,null,null,null,null,null,null,null,null,null,null,null,null,null,null,null,null,0,1]
[56,null,null,null,null,null,null,null,null,null,null,null,null,null,null,null,null,null,null,null,null,null,null,null,null,null,null,null,0,1]
[57,null,null,null,null,null,null,null,null,null,null,null,null,null,null,null,null,null,null,null,null,null,null,null,null,null,null,null,0,1]
[58,null,null,null,null,null,null,null,null,null,null,null,null,null,null,null,null,null,null,null,null,null,null,null,null,null,null,null,0,1]
[59,null,null,null,null,null,null,null,null,null,null,null,null,null,null,null,null,null,null,null,null,null,null,null,null,null,null,null,0,1]
[60,null,null,null,null,null,null,null,null,null,null,null,null,null,null,null,null,null,null,null,null,null,null,null,null,null,null,null,0,1]
[61,null,null,null,null,null,null,null,null,null,null,null,null,null,null,null,null,null,null,null,null,null,null,null,null,null,null,null,0,1]
[62,null,null,null,null,null,null,null,null,null,null,null,null,null,null,null,null,null,null,null,null,null,null,null,null,null,null,null,0,1]
[63,null,null,null,null,null,null,null,null,null,null,null,null,null,null,null,null,null,null,null,null,null,null,null,null,null,null,null,0,1]
[64,null,null,null,null,null,null,null,null,null,null,null,null,null,null,null,null,null,null,null,null,null,null,null,null,null,null,null,{"$f":"SUM(F70:AB70)","v":0},1]
[65,null,null,null,null,null,null,null,null,null,null,null,null,null,null,null,null,null,null,null,null,null,null,null,null,null,null,null,0,1]
[66,null,null,null,null,null,null,null,null,null,null,null,null,null,null,null,null,null,null,null,null,null,null,null,null,null,null,null,0,{"$f":"RANK(AC72,$AC$7:$AC$150,0)","v":1}]
[67,null,null,null,null,null,null,null,null,null,null,null,null,null,null,null,null,null,null,null,null,null,null,null,null,null,null,null,0,1]
[68,null,null,null,null,null,null,null,null,null,null,null,null,null,null,null,null,null,null,null,null,null,null,null,null,null,null,null,0,1]
[69,null,null,null,null,null,null,null,null,null,null,null,null,null,null,null,null,null,null,null,null,null,null,null,null,null,null,null,0,1]
[70,null,null,null,null,null,null,null,null,null,null,null,null,null,null,null,null,null,null,null,null,null,null,null,null,null,null,null,0,1]
[71,null,null,null,null,null,null,null,null,null,null,null,null,null,null,null,null,null,null,null,null,null,null,null,null,null,null,null,0,1]
[72,null,null,null,null,null,null,null,null,null,null,null,null,null,null,null,null,null,null,null,null,null,null,null,null,null,null,null,0,1]
[73,null,null,null,null,null,null,null,null,null,null,null,null,null,null,null,null,null,null,null,null,null,null,null,null,null,null,null,0,1]
[74,null,null,null,null,null,null,null,null,null,null,null,null,null,null,null,null,null,null,null,null,null,null,null,null,null,null,null,0,1]
[75,null,null,null,null,null,null,null,null,null,null,null,null,null,null,null,null,null,null,null,null,null,null,null,null,null,null,null,0,1]
[76,null,null,null,null,null,null,null,null,null,null,null,null,null,null,null,null,null,null,null,null,null,null,null,null,null,null,null,0,1]
[77,null,null,null,null,null,null,null,null,null,null,null,null,null,null,null,null,null,null,null,null,null,null,null,null,null,null,null,0,1]
[78,null,null,null,null,null,null,null,null,null,null,null,null,null,null,null,null,null,null,null,null,null,null,null,null,null,null,null,0,1]
[79,null,null,null,null,null,null,null,null,null,null,null,null,null,null,null,null,null,null,null,null,null,null,null,null,null,null,null,0,1]
[80,null,null,null,null,null,null,null,null,null,null,null,null,null,null,null,null,null,null,null,null,null,null,null,null,null,null,null,0,1]
[81,null,null,null,null,null,null,null,null,null,null,null,null,null,null,null,null,null,null,null,null,null,null,null,null,null,null,null,0,1]
[82,null,null,null,null,null,null,null,null,null,null,null,null,null,null,null,null,null,null,null,null,null,null,null,null,null,null,null,0,1]
[83,null,null,null,null,null,null,null,null,null,null,null,null,null,null,null,null,null,null,null,null,null,null,null,null,null,null,null,0,1]
[84,null,null,null,null,null,null,null,null,null,null,null,null,null,null,null,null,null,null,null,null,null,null,null,null,null,null,null,0,1]
[85,null,null,null,null,null,null,null,null,null,null,null,null,null,null,null,null,null,null,null,null,null,null,null,null,null,null,null,0,1]
[86,null,null,null,null,null,null,null,null,null,null,null,null,null,null,null,null,null,null,null,null,null,null,null,null,null,null,null,0,1]
[87,null,null,null,null,null,null,null,null,null,null,null,null,null,null,null,null,null,null,null,null,null,null,null,null,null,null,null,0,1]
[88,null,null,null,null,null,null,null,null,null,null,null,null,null,null,null,null,null,null,null,null,null,null,null,null,null,null,null,0,1]
[89,null,null,null,null,null,null,null,null,null,null,null,null,null,null,null,null,null,null,null,null,null,null,null,null,null,null,null,0,1]
[90,null,null,null,null,null,null,null,null,null,null,null,null,null,null,null,null,null,null,null,null,null,null,null,null,null,null,null,0,1]
[91,null,null,null,null,null,null,null,null,null,null,null,null,null,null,null,null,null,null,null,null,null,null,null,null,null,null,null,0,1]
[92,null,null,null,null,null,null,null,null,null,null,null,null,null,null,null,null,null,null,null,null,null,null,null,null,null,null,null,0,1]
[93,null,null,null,null,null,null,null,null,null,null,null,null,null,null,null,null,null,null,null,null,null,null,null,null,null,null,null,0,1]
[94,null,null,null,null,null,null,null,null,null,null,null,null,null,null,null,null,null,null,null,null,null,null,null,null,null,null,null,0,1]
[95,null,null,null,null,null,null,null,null,null,null,null,null,null,null,null,null,null,null,null,null,null,null,null,null,null,null,null,0,1]
[96,null,null,null,null,null,null,null,null,null,null,null,null,null,null,null,null,null,null,null,null,null,null,null,null,null,null,null,{"$f":"SUM(F102:AB102)","v":0},1]
[97,null,null,null,null,null,null,null,null,null,null,null,null,null,null,null,null,null,null,null,null,null,null,null,null,null,null,null,0,1]
[98,null,null,null,null,null,null,null,null,null,null,null,null,null,null,null,null,null,null,null,null,null,null,null,null,null,null,null,0,1]

{"sheet":"Grade 2","index":2,"n_rows":104,"n_cols":49,"rows_kept":104,"cut":false,"hidden":false,"merged":[[0,26,1,27],[0,28,1,29],[3,5,3,12],[3,14,3,21],[3,29,4,29]]}
[null,null,null,null,null,null,null,null,null,null,null,null,null,"First SEMESTER",null,null,null,null,null,null,null,null,null,null,null,null,"Students Number",null,{"$f":"COUNT(B7:B97)","v":0}]
[null,null,""]
[0,1,2,3,4,5,6,7,8,9,10,11,12,13,14,15,16,17,18,19,20,21,22,23,24,25,26,27,28,29]
[null,null,null,null,null,"Arabic",null,null,null,null,null,null,null,null,"English",null,null,null,null,null,null,null,null,null,null,null,null,null,null,"Rank"]
[null,null,null,null,null,"قراءة","تعبير شفهي","إصغاء","إستظهار","إملاء","قواعد","تحليل نص","تعبير كتابي","خط ونسخ","Reading","Oral Com","Listening","Poem","Dictation","Phonics","Read Com","Writing","Penmanship","Maths","Siences","Sports","Arts","Skills","Total Marks"]
["Adm No.","Roll No.","Name","Class","Section",10,10,10,10,10,10,10,10,10,10,10,10,10,10,10,10,10,10,60,30,10,10,10,{"$f":"SUM(F6:AB6)","v":300}]
[1,null,null,null,null,null,null,null,null,null,null,null,null,null,null,null,null,null,null,null,null,null,null,null,null,null,null,null,0,{"$f":"RANK(AC7,$AC$7:$AC$150,0)","v":1},null,null,null,null,null,null,null,null,null,null,null,null,null,null,null,null,null,"YELLOW","A"]
[2,null,null,null,null,null,null,null,null,null,null,null,null,null,null,null,null,null,null,null,null,null,null,null,null,null,null,null,0,{"$f":"RANK(AC8,$AC$7:$AC$150,0)","v":1},null,null,null,null,null,null,null,null,null,null,null,null,null,null,null,null,null,"FARMERS","B"]
[3,null,null,null,null,null,null,null,null,null,null,null,null,null,null,null,null,null,null,null,null,null,null,null,null,null,null,null,0,1,null,null,null,null,null,null,null,null,null,null,null,null,null,null,null,null,null,"BUS-MABSOUT","C"]
[4,null,null,null,null,null,null,null,null,null,null,null,null,null,null,null,null,null,null,null,null,null,null,null,null,null,null,null,0,1,null,null,null,null,null,null,null,null,null,null,null,null,null,null,null,null,null,"BLOOMERS","D"]
[5,null,null,null,null,null,null,null,null,null,null,null,null,null,null,null,null,null,null,null,null,null,null,null,null,null,null,null,0,1,null,null,null,null,null,null,null,null,null,null,null,null,null,null,null,null,null,"CACTUS","E"]
[6,null,null,null,null,null,null,null,null,null,null,null,null,null,null,null,null,null,null,null,null,null,null,null,null,null,null,null,0,1,null,null,null,null,null,null,null,null,null,null,null,null,null,null,null,null,null,"EDISON","F"]
[7,null,null,null,null,null,null,null,null,null,null,null,null,null,null,null,null,null,null,null,null,null,null,null,null,null,null,null,0,1]
[8,null,null,null,null,null,null,null,null,null,null,null,null,null,null,null,null,null,null,null,null,null,null,null,null,null,null,null,0,1]
[9,null,null,null,null,null,null,null,null,null,null,null,null,null,null,null,null,null,null,null,null,null,null,null,null,null,null,null,0,1]
[10,null,null,null,null,null,null,null,null,null,null,null,null,null,null,null,null,null,null,null,null,null,null,null,null,null,null,null,0,1]
[11,null,null,null,null,null,null,null,null,null,null,null,null,null,null,null,null,null,null,null,null,null,null,null,null,null,null,null,0,1]
[12,null,null,null,null,null,null,null,null,null,null,null,null,null,null,null,null,null,null,null,null,null,null,null,null,null,null,null,0,1]
[13,null,null,null,null,null,null,null,null,null,null,null,null,null,null,null,null,null,null,null,null,null,null,null,null,null,null,null,0,1]
[14,null,null,null,null,null,null,null,null,null,null,null,null,null,null,null,null,null,null,null,null,null,null,null,null,null,null,null,0,1]
[15,null,null,null,null,null,null,null,null,null,null,null,null,null,null,null,null,null,null,null,null,null,null,null,null,null,null,null,0,1]
[16,null,null,null,null,null,null,null,null,null,null,null,null,null,null,null,null,null,null,null,null,null,null,null,null,null,null,null,0,1]
[17,null,null,null,null,null,null,null,null,null,null,null,null,null,null,null,null,null,null,null,null,null,null,null,null,null,null,null,0,1]
[18,null,null,null,null,null,null,null,null,null,null,null,null,null,null,null,null,null,null,null,null,null,null,null,null,null,null,null,0,1]
[19,null,null,null,null,null,null,null,null,null,null,null,null,null,null,null,null,null,null,null,null,null,null,null,null,null,null,null,0,1]
[20,null,null,null,null,null,null,null,null,null,null,null,null,null,null,null,null,null,null,null,null,null,null,null,null,null,null,null,0,1]
[21,null,null,null,null,null,null,null,null,null,null,null,null,null,null,null,null,null,null,null,null,null,null,null,null,null,null,null,0,1]
[22,null,null,null,null,null,null,null,null,null,null,null,null,null,null,null,null,null,null,null,null,null,null,null,null,null,null,null,0,1]
[23,null,null,null,null,null,null,null,null,null,null,null,null,null,null,null,null,null,null,null,null,null,null,null,null,null,null,null,0,1]
[24,null,null,null,null,null,null,null,null,null,null,null,null,null,null,null,null,null,null,null,null,null,null,null,null,null,null,null,0,1]
[25,null,null,null,null,null,null,null,null,null,null,null,null,null,null,null,null,null,null,null,null,null,null,null,null,null,null,null,0,1]
[26,null,null,null,null,null,null,null,null,null,null,null,null,null,null,null,null,null,null,null,null,null,null,null,null,null,null,null,0,1]
[27,null,null,null,null,null,null,null,null,null,null,null,null,null,null,null,null,null,null,null,null,null,null,null,null,null,null,null,0,1]
[28,null,null,null,null,null,null,null,null,null,null,null,null,null,null,null,null,null,null,null,null,null,null,null,null,null,null,null,0,1]
[29,null,null,null,null,null,null,null,null,null,null,null,null,null,null,null,null,null,null,null,null,null,null,null,null,null,null,null,0,1]
[30,null,null,null,null,null,null,null,null,null,null,null,null,null,null,null,null,null,null,null,null,null,null,null,null,null,null,null,0,1]
[31,null,null,null,null,null,null,null,null,null,null,null,null,null,null,null,null,null,null,null,null,null,null,null,null,null,null,null,0,1]
[32,null,null,null,null,null,null,null,null,null,null,null,null,null,null,null,null,null,null,null,null,null,null,null,null,null,null,null,0,1]
[33,null,null,null,null,null,null,null,null,null,null,null,null,null,null,null,null,null,null,null,null,null,null,null,null,null,null,null,0,1]
[34,null,null,null,null,null,null,null,null,null,null,null,null,null,null,null,null,null,null,null,null,null,null,null,null,null,null,null,0,1]
[35,null,null,null,null,null,null,null,null,null,null,null,null,null,null,null,null,null,null,null,null,null,null,null,null,null,null,null,0,1]
[36,null,null,null,null,null,null,null,null,null,null,null,null,null,null,null,null,null,null,null,null,null,null,null,null,null,null,null,0,1]
[37,null,null,null,null,null,null,null,null,null,null,null,null,null,null,null,null,null,null,null,null,null,null,null,null,null,null,null,0,1]
[38,null,null,null,null,null,null,null,null,null,null,null,null,null,null,null,null,null,null,null,null,null,null,null,null,null,null,null,0,1]
[39,null,null,null,null,null,null,null,null,null,null,null,null,null,null,null,null,null,null,null,null,null,null,null,null,null,null,null,0,1]
[40,null,null,null,null,null,null,null,null,null,null,null,null,null,null,null,null,null,null,null,null,null,null,null,null,null,null,null,0,1]
[41,null,null,null,null,null,null,null,null,null,null,null,null,null,null,null,null,null,null,null,null,null,null,null,null,null,null,null,0,1]
[42,null,null,null,null,null,null,null,null,null,null,null,null,null,null,null,null,null,null,null,null,null,null,null,null,null,null,null,0,1]
[43,null,null,null,null,null,null,null,null,null,null,null,null,null,null,null,null,null,null,null,null,null,null,null,null,null,null,null,0,1]
[44,null,null,null,null,null,null,null,null,null,null,null,null,null,null,null,null,null,null,null,null,null,null,null,null,null,null,null,0,1]
[45,null,null,null,null,null,null,null,null,null,null,null,null,null,null,null,null,null,null,null,null,null,null,null,null,null,null,null,0,1]
[46,null,null,null,null,null,null,null,null,null,null,null,null,null,null,null,null,null,null,null,null,null,null,null,null,null,null,null,0,1]
[47,null,null,null,null,null,null,null,null,null,null,null,null,null,null,null,null,null,null,null,null,null,null,null,null,null,null,null,0,1]
[48,null,null,null,null,null,null,null,null,null,null,null,null,null,null,null,null,null,null,null,null,null,null,null,null,null,null,null,0,1]
[49,null,null,null,null,null,null,null,null,null,null,null,null,null,null,null,null,null,null,null,null,null,null,null,null,null,null,null,0,1]
[50,null,null,null,null,null,null,null,null,null,null,null,null,null,null,null,null,null,null,null,null,null,null,null,null,null,null,null,0,1]
[51,null,null,null,null,null,null,null,null,null,null,null,null,null,null,null,null,null,null,null,null,null,null,null,null,null,null,null,0,1]
[52,null,null,null,null,null,null,null,null,null,null,null,null,null,null,null,null,null,null,null,null,null,null,null,null,null,null,null,0,1]
[53,null,null,null,null,null,null,null,null,null,null,null,null,null,null,null,null,null,null,null,null,null,null,null,null,null,null,null,0,1]
[54,null,null,null,null,null,null,null,null,null,null,null,null,null,null,null,null,null,null,null,null,null,null,null,null,null,null,null,0,1]
[55,null,null,null,null,null,null,null,null,null,null,null,null,null,null,null,null,null,null,null,null,null,null,null,null,null,null,null,0,1]
[56,null,null,null,null,null,null,null,null,null,null,null,null,null,null,null,null,null,null,null,null,null,null,null,null,null,null,null,0,1]
[57,null,null,null,null,null,null,null,null,null,null,null,null,null,null,null,null,null,null,null,null,null,null,null,null,null,null,null,0,1]
[58,null,null,null,null,null,null,null,null,null,null,null,null,null,null,null,null,null,null,null,null,null,null,null,null,null,null,null,0,1]
[59,null,null,null,null,null,null,null,null,null,null,null,null,null,null,null,null,null,null,null,null,null,null,null,null,null,null,null,0,1]
[60,null,null,null,null,null,null,null,null,null,null,null,null,null,null,null,null,null,null,null,null,null,null,null,null,null,null,null,0,1]
[61,null,null,null,null,null,null,null,null,null,null,null,null,null,null,null,null,null,null,null,null,null,null,null,null,null,null,null,0,1]
[62,null,null,null,null,null,null,null,null,null,null,null,null,null,null,null,null,null,null,null,null,null,null,null,null,null,null,null,0,1]
[63,null,null,null,null,null,null,null,null,null,null,null,null,null,null,null,null,null,null,null,null,null,null,null,null,null,null,null,0,1]
[64,null,null,null,null,null,null,null,null,null,null,null,null,null,null,null,null,null,null,null,null,null,null,null,null,null,null,null,{"$f":"SUM(F70:AB70)","v":0},1]
[65,null,null,null,null,null,null,null,null,null,null,null,null,null,null,null,null,null,null,null,null,null,null,null,null,null,null,null,0,1]
[66,null,null,null,null,null,null,null,null,null,null,null,null,null,null,null,null,null,null,null,null,null,null,null,null,null,null,null,0,{"$f":"RANK(AC72,$AC$7:$AC$150,0)","v":1}]
[67,null,null,null,null,null,null,null,null,null,null,null,null,null,null,null,null,null,null,null,null,null,null,null,null,null,null,null,0,1]
[68,null,null,null,null,null,null,null,null,null,null,null,null,null,null,null,null,null,null,null,null,null,null,null,null,null,null,null,0,1]
[69,null,null,null,null,null,null,null,null,null,null,null,null,null,null,null,null,null,null,null,null,null,null,null,null,null,null,null,0,1]
[70,null,null,null,null,null,null,null,null,null,null,null,null,null,null,null,null,null,null,null,null,null,null,null,null,null,null,null,0,1]
[71,null,null,null,null,null,null,null,null,null,null,null,null,null,null,null,null,null,null,null,null,null,null,null,null,null,null,null,0,1]
[72,null,null,null,null,null,null,null,null,null,null,null,null,null,null,null,null,null,null,null,null,null,null,null,null,null,null,null,0,1]
[73,null,null,null,null,null,null,null,null,null,null,null,null,null,null,null,null,null,null,null,null,null,null,null,null,null,null,null,0,1]
[74,null,null,null,null,null,null,null,null,null,null,null,null,null,null,null,null,null,null,null,null,null,null,null,null,null,null,null,0,1]
[75,null,null,null,null,null,null,null,null,null,null,null,null,null,null,null,null,null,null,null,null,null,null,null,null,null,null,null,0,1]
[76,null,null,null,null,null,null,null,null,null,null,null,null,null,null,null,null,null,null,null,null,null,null,null,null,null,null,null,0,1]
[77,null,null,null,null,null,null,null,null,null,null,null,null,null,null,null,null,null,null,null,null,null,null,null,null,null,null,null,0,1]
[78,null,null,null,null,null,null,null,null,null,null,null,null,null,null,null,null,null,null,null,null,null,null,null,null,null,null,null,0,1]
[79,null,null,null,null,null,null,null,null,null,null,null,null,null,null,null,null,null,null,null,null,null,null,null,null,null,null,null,0,1]
[80,null,null,null,null,null,null,null,null,null,null,null,null,null,null,null,null,null,null,null,null,null,null,null,null,null,null,null,0,1]
[81,null,null,null,null,null,null,null,null,null,null,null,null,null,null,null,null,null,null,null,null,null,null,null,null,null,null,null,0,1]
[82,null,null,null,null,null,null,null,null,null,null,null,null,null,null,null,null,null,null,null,null,null,null,null,null,null,null,null,0,1]
[83,null,null,null,null,null,null,null,null,null,null,null,null,null,null,null,null,null,null,null,null,null,null,null,null,null,null,null,0,1]
[84,null,null,null,null,null,null,null,null,null,null,null,null,null,null,null,null,null,null,null,null,null,null,null,null,null,null,null,0,1]
[85,null,null,null,null,null,null,null,null,null,null,null,null,null,null,null,null,null,null,null,null,null,null,null,null,null,null,null,0,1]
[86,null,null,null,null,null,null,null,null,null,null,null,null,null,null,null,null,null,null,null,null,null,null,null,null,null,null,null,0,1]
[87,null,null,null,null,null,null,null,null,null,null,null,null,null,null,null,null,null,null,null,null,null,null,null,null,null,null,null,0,1]
[88,null,null,null,null,null,null,null,null,null,null,null,null,null,null,null,null,null,null,null,null,null,null,null,null,null,null,null,0,1]
[89,null,null,null,null,null,null,null,null,null,null,null,null,null,null,null,null,null,null,null,null,null,null,null,null,null,null,null,0,1]
[90,null,null,null,null,null,null,null,null,null,null,null,null,null,null,null,null,null,null,null,null,null,null,null,null,null,null,null,0,1]
[91,null,null,null,null,null,null,null,null,null,null,null,null,null,null,null,null,null,null,null,null,null,null,null,null,null,null,null,0,1]
[92,null,null,null,null,null,null,null,null,null,null,null,null,null,null,null,null,null,null,null,null,null,null,null,null,null,null,null,0,1]
[93,null,null,null,null,null,null,null,null,null,null,null,null,null,null,null,null,null,null,null,null,null,null,null,null,null,null,null,0,1]
[94,null,null,null,null,null,null,null,null,null,null,null,null,null,null,null,null,null,null,null,null,null,null,null,null,null,null,null,0,1]
[95,null,null,null,null,null,null,null,null,null,null,null,null,null,null,null,null,null,null,null,null,null,null,null,null,null,null,null,0,1]
[96,null,null,null,null,null,null,null,null,null,null,null,null,null,null,null,null,null,null,null,null,null,null,null,null,null,null,null,0,1]
[97,null,null,null,null,null,null,null,null,null,null,null,null,null,null,null,null,null,null,null,null,null,null,null,null,null,null,null,0,1]
[98,null,null,null,null,null,null,null,null,null,null,null,null,null,null,null,null,null,null,null,null,null,null,null,null,null,null,null,0,1]

{"sheet":"Grade 3","index":3,"n_rows":104,"n_cols":49,"rows_kept":104,"cut":false,"hidden":false,"merged":[[0,26,1,27],[0,28,1,29],[3,5,3,12],[3,14,3,21],[3,29,4,29]]}
[null,null,null,null,null,null,null,null,null,null,null,null,null,"First SEMESTER",null,null,null,null,null,null,null,null,null,null,null,null,"Students Number",null,{"$f":"COUNT(B7:B97)","v":0}]
[null,null,""]
[0,1,2,3,4,5,6,7,8,9,10,11,12,13,14,15,16,17,18,19,20,21,22,23,24,25,26,27,28,29]
[null,null,null,null,null,"Arabic",null,null,null,null,null,null,null,null,"English",null,null,null,null,null,null,null,null,null,null,null,null,null,null,"Rank"]
[null,null,null,null,null,"قراءة","تعبير شفهي","إصغاء","إستظهار","إملاء","قواعد","تحليل نص","تعبير كتابي","خط ونسخ","Reading","Oral Com","Listening","Poem","Dictation","Phonics","Read Com","Writing","Penmanship","Maths","Siences","Sports","Arts","Skills","Total Marks"]
["Adm No.","Roll No.","Name","Class","Section",10,10,10,10,10,10,10,10,10,10,10,10,10,10,10,10,10,10,60,30,10,10,10,{"$f":"SUM(F6:AB6)","v":300}]
[1,null,null,null,null,null,null,null,null,null,null,null,null,null,null,null,null,null,null,null,null,null,null,null,null,null,null,null,0,{"$f":"RANK(AC7,$AC$7:$AC$150,0)","v":1},null,null,null,null,null,null,null,null,null,null,null,null,null,null,null,null,null,"YELLOW","A"]
[2,null,null,null,null,null,null,null,null,null,null,null,null,null,null,null,null,null,null,null,null,null,null,null,null,null,null,null,0,{"$f":"RANK(AC8,$AC$7:$AC$150,0)","v":1},null,null,null,null,null,null,null,null,null,null,null,null,null,null,null,null,null,"FARMERS","B"]
[3,null,null,null,null,null,null,null,null,null,null,null,null,null,null,null,null,null,null,null,null,null,null,null,null,null,null,null,0,1,null,null,null,null,null,null,null,null,null,null,null,null,null,null,null,null,null,"BUS-MABSOUT","C"]
[4,null,null,null,null,null,null,null,null,null,null,null,null,null,null,null,null,null,null,null,null,null,null,null,null,null,null,null,0,1,null,null,null,null,null,null,null,null,null,null,null,null,null,null,null,null,null,"BLOOMERS","D"]
[5,null,null,null,null,null,null,null,null,null,null,null,null,null,null,null,null,null,null,null,null,null,null,null,null,null,null,null,0,1,null,null,null,null,null,null,null,null,null,null,null,null,null,null,null,null,null,"CACTUS","E"]
[6,null,null,null,null,null,null,null,null,null,null,null,null,null,null,null,null,null,null,null,null,null,null,null,null,null,null,null,0,1,null,null,null,null,null,null,null,null,null,null,null,null,null,null,null,null,null,"EDISON","F"]
[7,null,null,null,null,null,null,null,null,null,null,null,null,null,null,null,null,null,null,null,null,null,null,null,null,null,null,null,0,1]
[8,null,null,null,null,null,null,null,null,null,null,null,null,null,null,null,null,null,null,null,null,null,null,null,null,null,null,null,0,1]
[9,null,null,null,null,null,null,null,null,null,null,null,null,null,null,null,null,null,null,null,null,null,null,null,null,null,null,null,0,1]
[10,null,null,null,null,null,null,null,null,null,null,null,null,null,null,null,null,null,null,null,null,null,null,null,null,null,null,null,0,1]
[11,null,null,null,null,null,null,null,null,null,null,null,null,null,null,null,null,null,null,null,null,null,null,null,null,null,null,null,0,1]
[12,null,null,null,null,null,null,null,null,null,null,null,null,null,null,null,null,null,null,null,null,null,null,null,null,null,null,null,0,1]
[13,null,null,null,null,null,null,null,null,null,null,null,null,null,null,null,null,null,null,null,null,null,null,null,null,null,null,null,0,1]
[14,null,null,null,null,null,null,null,null,null,null,null,null,null,null,null,null,null,null,null,null,null,null,null,null,null,null,null,0,1]
[15,null,null,null,null,null,null,null,null,null,null,null,null,null,null,null,null,null,null,null,null,null,null,null,null,null,null,null,0,1]
[16,null,null,null,null,null,null,null,null,null,null,null,null,null,null,null,null,null,null,null,null,null,null,null,null,null,null,null,0,1]
[17,null,null,null,null,null,null,null,null,null,null,null,null,null,null,null,null,null,null,null,null,null,null,null,null,null,null,null,0,1]
[18,null,null,null,null,null,null,null,null,null,null,null,null,null,null,null,null,null,null,null,null,null,null,null,null,null,null,null,0,1]
[19,null,null,null,null,null,null,null,null,null,null,null,null,null,null,null,null,null,null,null,null,null,null,null,null,null,null,null,0,1]
[20,null,null,null,null,null,null,null,null,null,null,null,null,null,null,null,null,null,null,null,null,null,null,null,null,null,null,null,0,1]
[21,null,null,null,null,null,null,null,null,null,null,null,null,null,null,null,null,null,null,null,null,null,null,null,null,null,null,null,0,1]
[22,null,null,null,null,null,null,null,null,null,null,null,null,null,null,null,null,null,null,null,null,null,null,null,null,null,null,null,0,1]
[23,null,null,null,null,null,null,null,null,null,null,null,null,null,null,null,null,null,null,null,null,null,null,null,null,null,null,null,0,1]
[24,null,null,null,null,null,null,null,null,null,null,null,null,null,null,null,null,null,null,null,null,null,null,null,null,null,null,null,0,1]
[25,null,null,null,null,null,null,null,null,null,null,null,null,null,null,null,null,null,null,null,null,null,null,null,null,null,null,null,0,1]
[26,null,null,null,null,null,null,null,null,null,null,null,null,null,null,null,null,null,null,null,null,null,null,null,null,null,null,null,0,1]
[27,null,null,null,null,null,null,null,null,null,null,null,null,null,null,null,null,null,null,null,null,null,null,null,null,null,null,null,0,1]
[28,null,null,null,null,null,null,null,null,null,null,null,null,null,null,null,null,null,null,null,null,null,null,null,null,null,null,null,0,1]
[29,null,null,null,null,null,null,null,null,null,null,null,null,null,null,null,null,null,null,null,null,null,null,null,null,null,null,null,0,1]
[30,null,null,null,null,null,null,null,null,null,null,null,null,null,null,null,null,null,null,null,null,null,null,null,null,null,null,null,0,1]
[31,null,null,null,null,null,null,null,null,null,null,null,null,null,null,null,null,null,null,null,null,null,null,null,null,null,null,null,0,1]
[32,null,null,null,null,null,null,null,null,null,null,null,null,null,null,null,null,null,null,null,null,null,null,null,null,null,null,null,0,1]
[33,null,null,null,null,null,null,null,null,null,null,null,null,null,null,null,null,null,null,null,null,null,null,null,null,null,null,null,0,1]
[34,null,null,null,null,null,null,null,null,null,null,null,null,null,null,null,null,null,null,null,null,null,null,null,null,null,null,null,0,1]
[35,null,null,null,null,null,null,null,null,null,null,null,null,null,null,null,null,null,null,null,null,null,null,null,null,null,null,null,0,1]
[36,null,null,null,null,null,null,null,null,null,null,null,null,null,null,null,null,null,null,null,null,null,null,null,null,null,null,null,0,1]
[37,null,null,null,null,null,null,null,null,null,null,null,null,null,null,null,null,null,null,null,null,null,null,null,null,null,null,null,0,1]
[38,null,null,null,null,null,null,null,null,null,null,null,null,null,null,null,null,null,null,null,null,null,null,null,null,null,null,null,0,1]
[39,null,null,null,null,null,null,null,null,null,null,null,null,null,null,null,null,null,null,null,null,null,null,null,null,null,null,null,0,1]
[40,null,null,null,null,null,null,null,null,null,null,null,null,null,null,null,null,null,null,null,null,null,null,null,null,null,null,null,0,1]
[41,null,null,null,null,null,null,null,null,null,null,null,null,null,null,null,null,null,null,null,null,null,null,null,null,null,null,null,0,1]
[42,null,null,null,null,null,null,null,null,null,null,null,null,null,null,null,null,null,null,null,null,null,null,null,null,null,null,null,0,1]
[43,null,null,null,null,null,null,null,null,null,null,null,null,null,null,null,null,null,null,null,null,null,null,null,null,null,null,null,0,1]
[44,null,null,null,null,null,null,null,null,null,null,null,null,null,null,null,null,null,null,null,null,null,null,null,null,null,null,null,0,1]
[45,null,null,null,null,null,null,null,null,null,null,null,null,null,null,null,null,null,null,null,null,null,null,null,null,null,null,null,0,1]
[46,null,null,null,null,null,null,null,null,null,null,null,null,null,null,null,null,null,null,null,null,null,null,null,null,null,null,null,0,1]
[47,null,null,null,null,null,null,null,null,null,null,null,null,null,null,null,null,null,null,null,null,null,null,null,null,null,null,null,0,1]
[48,null,null,null,null,null,null,null,null,null,null,null,null,null,null,null,null,null,null,null,null,null,null,null,null,null,null,null,0,1]
[49,null,null,null,null,null,null,null,null,null,null,null,null,null,null,null,null,null,null,null,null,null,null,null,null,null,null,null,0,1]
[50,null,null,null,null,null,null,null,null,null,null,null,null,null,null,null,null,null,null,null,null,null,null,null,null,null,null,null,0,1]
[51,null,null,null,null,null,null,null,null,null,null,null,null,null,null,null,null,null,null,null,null,null,null,null,null,null,null,null,0,1]
[52,null,null,null,null,null,null,null,null,null,null,null,null,null,null,null,null,null,null,null,null,null,null,null,null,null,null,null,0,1]
[53,null,null,null,null,null,null,null,null,null,null,null,null,null,null,null,null,null,null,null,null,null,null,null,null,null,null,null,0,1]
[54,null,null,null,null,null,null,null,null,null,null,null,null,null,null,null,null,null,null,null,null,null,null,null,null,null,null,null,0,1]
[55,null,null,null,null,null,null,null,null,null,null,null,null,null,null,null,null,null,null,null,null,null,null,null,null,null,null,null,0,1]
[56,null,null,null,null,null,null,null,null,null,null,null,null,null,null,null,null,null,null,null,null,null,null,null,null,null,null,null,0,1]
[57,null,null,null,null,null,null,null,null,null,null,null,null,null,null,null,null,null,null,null,null,null,null,null,null,null,null,null,0,1]
[58,null,null,null,null,null,null,null,null,null,null,null,null,null,null,null,null,null,null,null,null,null,null,null,null,null,null,null,0,1]
[59,null,null,null,null,null,null,null,null,null,null,null,null,null,null,null,null,null,null,null,null,null,null,null,null,null,null,null,0,1]
[60,null,null,null,null,null,null,null,null,null,null,null,null,null,null,null,null,null,null,null,null,null,null,null,null,null,null,null,0,1]
[61,null,null,null,null,null,null,null,null,null,null,null,null,null,null,null,null,null,null,null,null,null,null,null,null,null,null,null,0,1]
[62,null,null,null,null,null,null,null,null,null,null,null,null,null,null,null,null,null,null,null,null,null,null,null,null,null,null,null,0,1]
[63,null,null,null,null,null,null,null,null,null,null,null,null,null,null,null,null,null,null,null,null,null,null,null,null,null,null,null,0,1]
[64,null,null,null,null,null,null,null,null,null,null,null,null,null,null,null,null,null,null,null,null,null,null,null,null,null,null,null,{"$f":"SUM(F70:AB70)","v":0},1]
[65,null,null,null,null,null,null,null,null,null,null,null,null,null,null,null,null,null,null,null,null,null,null,null,null,null,null,null,0,1]
[66,null,null,null,null,null,null,null,null,null,null,null,null,null,null,null,null,null,null,null,null,null,null,null,null,null,null,null,0,{"$f":"RANK(AC72,$AC$7:$AC$150,0)","v":1}]
[67,null,null,null,null,null,null,null,null,null,null,null,null,null,null,null,null,null,null,null,null,null,null,null,null,null,null,null,0,1]
[68,null,null,null,null,null,null,null,null,null,null,null,null,null,null,null,null,null,null,null,null,null,null,null,null,null,null,null,0,1]
[69,null,null,null,null,null,null,null,null,null,null,null,null,null,null,null,null,null,null,null,null,null,null,null,null,null,null,null,0,1]
[70,null,null,null,null,null,null,null,null,null,null,null,null,null,null,null,null,null,null,null,null,null,null,null,null,null,null,null,0,1]
[71,null,null,null,null,null,null,null,null,null,null,null,null,null,null,null,null,null,null,null,null,null,null,null,null,null,null,null,0,1]
[72,null,null,null,null,null,null,null,null,null,null,null,null,null,null,null,null,null,null,null,null,null,null,null,null,null,null,null,0,1]
[73,null,null,null,null,null,null,null,null,null,null,null,null,null,null,null,null,null,null,null,null,null,null,null,null,null,null,null,0,1]
[74,null,null,null,null,null,null,null,null,null,null,null,null,null,null,null,null,null,null,null,null,null,null,null,null,null,null,null,0,1]
[75,null,null,null,null,null,null,null,null,null,null,null,null,null,null,null,null,null,null,null,null,null,null,null,null,null,null,null,0,1]
[76,null,null,null,null,null,null,null,null,null,null,null,null,null,null,null,null,null,null,null,null,null,null,null,null,null,null,null,0,1]
[77,null,null,null,null,null,null,null,null,null,null,null,null,null,null,null,null,null,null,null,null,null,null,null,null,null,null,null,0,1]
[78,null,null,null,null,null,null,null,null,null,null,null,null,null,null,null,null,null,null,null,null,null,null,null,null,null,null,null,0,1]
[79,null,null,null,null,null,null,null,null,null,null,null,null,null,null,null,null,null,null,null,null,null,null,null,null,null,null,null,0,1]
[80,null,null,null,null,null,null,null,null,null,null,null,null,null,null,null,null,null,null,null,null,null,null,null,null,null,null,null,0,1]
[81,null,null,null,null,null,null,null,null,null,null,null,null,null,null,null,null,null,null,null,null,null,null,null,null,null,null,null,0,1]
[82,null,null,null,null,null,null,null,null,null,null,null,null,null,null,null,null,null,null,null,null,null,null,null,null,null,null,null,0,1]
[83,null,null,null,null,null,null,null,null,null,null,null,null,null,null,null,null,null,null,null,null,null,null,null,null,null,null,null,0,1]
[84,null,null,null,null,null,null,null,null,null,null,null,null,null,null,null,null,null,null,null,null,null,null,null,null,null,null,null,0,1]
[85,null,null,null,null,null,null,null,null,null,null,null,null,null,null,null,null,null,null,null,null,null,null,null,null,null,null,null,0,1]
[86,null,null,null,null,null,null,null,null,null,null,null,null,null,null,null,null,null,null,null,null,null,null,null,null,null,null,null,0,1]
[87,null,null,null,null,null,null,null,null,null,null,null,null,null,null,null,null,null,null,null,null,null,null,null,null,null,null,null,0,1]
[88,null,null,null,null,null,null,null,null,null,null,null,null,null,null,null,null,null,null,null,null,null,null,null,null,null,null,null,0,1]
[89,null,null,null,null,null,null,null,null,null,null,null,null,null,null,null,null,null,null,null,null,null,null,null,null,null,null,null,0,1]
[90,null,null,null,null,null,null,null,null,null,null,null,null,null,null,null,null,null,null,null,null,null,null,null,null,null,null,null,0,1]
[91,null,null,null,null,null,null,null,null,null,null,null,null,null,null,null,null,null,null,null,null,null,null,null,null,null,null,null,0,1]
[92,null,null,null,null,null,null,null,null,null,null,null,null,null,null,null,null,null,null,null,null,null,null,null,null,null,null,null,0,1]
[93,null,null,null,null,null,null,null,null,null,null,null,null,null,null,null,null,null,null,null,null,null,null,null,null,null,null,null,0,1]
[94,null,null,null,null,null,null,null,null,null,null,null,null,null,null,null,null,null,null,null,null,null,null,null,null,null,null,null,0,1]
[95,null,null,null,null,null,null,null,null,null,null,null,null,null,null,null,null,null,null,null,null,null,null,null,null,null,null,null,0,1]
[96,null,null,null,null,null,null,null,null,null,null,null,null,null,null,null,null,null,null,null,null,null,null,null,null,null,null,null,0,1]
[97,null,null,null,null,null,null,null,null,null,null,null,null,null,null,null,null,null,null,null,null,null,null,null,null,null,null,null,0,1]
[98,null,null,null,null,null,null,null,null,null,null,null,null,null,null,null,null,null,null,null,null,null,null,null,null,null,null,null,0,1]

{"sheet":"Grade 4","index":4,"n_rows":104,"n_cols":49,"rows_kept":104,"cut":false,"hidden":false,"merged":[[0,26,1,27],[0,28,1,29],[3,5,3,12],[3,14,3,21],[3,29,4,29]]}
[null,null,null,null,null,null,null,null,null,null,null,null,null,"First SEMESTER",null,null,null,null,null,null,null,null,null,null,null,null,"Students Number",null,{"$f":"COUNT(B7:B97)","v":0}]
[null,null,""]
[0,1,2,3,4,5,6,7,8,9,10,11,12,13,14,15,16,17,18,19,20,21,22,23,24,25,26,27,28,29]
[null,null,null,null,null,"Arabic",null,null,null,null,null,null,null,null,"English",null,null,null,null,null,null,null,null,null,null,null,null,null,null,"Rank"]
[null,null,null,null,null,"قراءة","تعبير شفهي","إصغاء","إستظهار","إملاء","قواعد","تحليل نص","تعبير كتابي","خط ونسخ","Reading","Oral Com","Listening","Poem","Dictation","Phonics","Read Com","Writing","Penmanship","Maths","Siences","Sports","Arts","Skills","Total Marks"]
["Adm No.","Roll No.","Name","Class","Section",10,10,10,10,10,10,10,10,10,10,10,10,10,10,10,10,10,10,60,30,10,10,10,{"$f":"SUM(F6:AB6)","v":300}]
[1,null,null,null,null,null,null,null,null,null,null,null,null,null,null,null,null,null,null,null,null,null,null,null,null,null,null,null,0,{"$f":"RANK(AC7,$AC$7:$AC$150,0)","v":1},null,null,null,null,null,null,null,null,null,null,null,null,null,null,null,null,null,"YELLOW","A"]
[2,null,null,null,null,null,null,null,null,null,null,null,null,null,null,null,null,null,null,null,null,null,null,null,null,null,null,null,0,{"$f":"RANK(AC8,$AC$7:$AC$150,0)","v":1},null,null,null,null,null,null,null,null,null,null,null,null,null,null,null,null,null,"FARMERS","B"]
[3,null,null,null,null,null,null,null,null,null,null,null,null,null,null,null,null,null,null,null,null,null,null,null,null,null,null,null,0,1,null,null,null,null,null,null,null,null,null,null,null,null,null,null,null,null,null,"BUS-MABSOUT","C"]
[4,null,null,null,null,null,null,null,null,null,null,null,null,null,null,null,null,null,null,null,null,null,null,null,null,null,null,null,0,1,null,null,null,null,null,null,null,null,null,null,null,null,null,null,null,null,null,"BLOOMERS","D"]
[5,null,null,null,null,null,null,null,null,null,null,null,null,null,null,null,null,null,null,null,null,null,null,null,null,null,null,null,0,1,null,null,null,null,null,null,null,null,null,null,null,null,null,null,null,null,null,"CACTUS","E"]
[6,null,null,null,null,null,null,null,null,null,null,null,null,null,null,null,null,null,null,null,null,null,null,null,null,null,null,null,0,1,null,null,null,null,null,null,null,null,null,null,null,null,null,null,null,null,null,"EDISON","F"]
[7,null,null,null,null,null,null,null,null,null,null,null,null,null,null,null,null,null,null,null,null,null,null,null,null,null,null,null,0,1]
[8,null,null,null,null,null,null,null,null,null,null,null,null,null,null,null,null,null,null,null,null,null,null,null,null,null,null,null,0,1]
[9,null,null,null,null,null,null,null,null,null,null,null,null,null,null,null,null,null,null,null,null,null,null,null,null,null,null,null,0,1]
[10,null,null,null,null,null,null,null,null,null,null,null,null,null,null,null,null,null,null,null,null,null,null,null,null,null,null,null,0,1]
[11,null,null,null,null,null,null,null,null,null,null,null,null,null,null,null,null,null,null,null,null,null,null,null,null,null,null,null,0,1]
[12,null,null,null,null,null,null,null,null,null,null,null,null,null,null,null,null,null,null,null,null,null,null,null,null,null,null,null,0,1]
[13,null,null,null,null,null,null,null,null,null,null,null,null,null,null,null,null,null,null,null,null,null,null,null,null,null,null,null,0,1]
[14,null,null,null,null,null,null,null,null,null,null,null,null,null,null,null,null,null,null,null,null,null,null,null,null,null,null,null,0,1]
[15,null,null,null,null,null,null,null,null,null,null,null,null,null,null,null,null,null,null,null,null,null,null,null,null,null,null,null,0,1]
[16,null,null,null,null,null,null,null,null,null,null,null,null,null,null,null,null,null,null,null,null,null,null,null,null,null,null,null,0,1]
[17,null,null,null,null,null,null,null,null,null,null,null,null,null,null,null,null,null,null,null,null,null,null,null,null,null,null,null,0,1]
[18,null,null,null,null,null,null,null,null,null,null,null,null,null,null,null,null,null,null,null,null,null,null,null,null,null,null,null,0,1]
[19,null,null,null,null,null,null,null,null,null,null,null,null,null,null,null,null,null,null,null,null,null,null,null,null,null,null,null,0,1]
[20,null,null,null,null,null,null,null,null,null,null,null,null,null,null,null,null,null,null,null,null,null,null,null,null,null,null,null,0,1]
[21,null,null,null,null,null,null,null,null,null,null,null,null,null,null,null,null,null,null,null,null,null,null,null,null,null,null,null,0,1]
[22,null,null,null,null,null,null,null,null,null,null,null,null,null,null,null,null,null,null,null,null,null,null,null,null,null,null,null,0,1]
[23,null,null,null,null,null,null,null,null,null,null,null,null,null,null,null,null,null,null,null,null,null,null,null,null,null,null,null,0,1]
[24,null,null,null,null,null,null,null,null,null,null,null,null,null,null,null,null,null,null,null,null,null,null,null,null,null,null,null,0,1]
[25,null,null,null,null,null,null,null,null,null,null,null,null,null,null,null,null,null,null,null,null,null,null,null,null,null,null,null,0,1]
[26,null,null,null,null,null,null,null,null,null,null,null,null,null,null,null,null,null,null,null,null,null,null,null,null,null,null,null,0,1]
[27,null,null,null,null,null,null,null,null,null,null,null,null,null,null,null,null,null,null,null,null,null,null,null,null,null,null,null,0,1]
[28,null,null,null,null,null,null,null,null,null,null,null,null,null,null,null,null,null,null,null,null,null,null,null,null,null,null,null,0,1]
[29,null,null,null,null,null,null,null,null,null,null,null,null,null,null,null,null,null,null,null,null,null,null,null,null,null,null,null,0,1]
[30,null,null,null,null,null,null,null,null,null,null,null,null,null,null,null,null,null,null,null,null,null,null,null,null,null,null,null,0,1]
[31,null,null,null,null,null,null,null,null,null,null,null,null,null,null,null,null,null,null,null,null,null,null,null,null,null,null,null,0,1]
[32,null,null,null,null,null,null,null,null,null,null,null,null,null,null,null,null,null,null,null,null,null,null,null,null,null,null,null,0,1]
[33,null,null,null,null,null,null,null,null,null,null,null,null,null,null,null,null,null,null,null,null,null,null,null,null,null,null,null,0,1]
[34,null,null,null,null,null,null,null,null,null,null,null,null,null,null,null,null,null,null,null,null,null,null,null,null,null,null,null,0,1]
[35,null,null,null,null,null,null,null,null,null,null,null,null,null,null,null,null,null,null,null,null,null,null,null,null,null,null,null,0,1]
[36,null,null,null,null,null,null,null,null,null,null,null,null,null,null,null,null,null,null,null,null,null,null,null,null,null,null,null,0,1]
[37,null,null,null,null,null,null,null,null,null,null,null,null,null,null,null,null,null,null,null,null,null,null,null,null,null,null,null,0,1]
[38,null,null,null,null,null,null,null,null,null,null,null,null,null,null,null,null,null,null,null,null,null,null,null,null,null,null,null,0,1]
[39,null,null,null,null,null,null,null,null,null,null,null,null,null,null,null,null,null,null,null,null,null,null,null,null,null,null,null,0,1]
[40,null,null,null,null,null,null,null,null,null,null,null,null,null,null,null,null,null,null,null,null,null,null,null,null,null,null,null,0,1]
[41,null,null,null,null,null,null,null,null,null,null,null,null,null,null,null,null,null,null,null,null,null,null,null,null,null,null,null,0,1]
[42,null,null,null,null,null,null,null,null,null,null,null,null,null,null,null,null,null,null,null,null,null,null,null,null,null,null,null,0,1]
[43,null,null,null,null,null,null,null,null,null,null,null,null,null,null,null,null,null,null,null,null,null,null,null,null,null,null,null,0,1]
[44,null,null,null,null,null,null,null,null,null,null,null,null,null,null,null,null,null,null,null,null,null,null,null,null,null,null,null,0,1]
[45,null,null,null,null,null,null,null,null,null,null,null,null,null,null,null,null,null,null,null,null,null,null,null,null,null,null,null,0,1]
[46,null,null,null,null,null,null,null,null,null,null,null,null,null,null,null,null,null,null,null,null,null,null,null,null,null,null,null,0,1]
[47,null,null,null,null,null,null,null,null,null,null,null,null,null,null,null,null,null,null,null,null,null,null,null,null,null,null,null,0,1]
[48,null,null,null,null,null,null,null,null,null,null,null,null,null,null,null,null,null,null,null,null,null,null,null,null,null,null,null,0,1]
[49,null,null,null,null,null,null,null,null,null,null,null,null,null,null,null,null,null,null,null,null,null,null,null,null,null,null,null,0,1]
[50,null,null,null,null,null,null,null,null,null,null,null,null,null,null,null,null,null,null,null,null,null,null,null,null,null,null,null,0,1]
[51,null,null,null,null,null,null,null,null,null,null,null,null,null,null,null,null,null,null,null,null,null,null,null,null,null,null,null,0,1]
[52,null,null,null,null,null,null,null,null,null,null,null,null,null,null,null,null,null,null,null,null,null,null,null,null,null,null,null,0,1]
[53,null,null,null,null,null,null,null,null,null,null,null,null,null,null,null,null,null,null,null,null,null,null,null,null,null,null,null,0,1]
[54,null,null,null,null,null,null,null,null,null,null,null,null,null,null,null,null,null,null,null,null,null,null,null,null,null,null,null,0,1]
[55,null,null,null,null,null,null,null,null,null,null,null,null,null,null,null,null,null,null,null,null,null,null,null,null,null,null,null,0,1]
[56,null,null,null,null,null,null,null,null,null,null,null,null,null,null,null,null,null,null,null,null,null,null,null,null,null,null,null,0,1]
[57,null,null,null,null,null,null,null,null,null,null,null,null,null,null,null,null,null,null,null,null,null,null,null,null,null,null,null,0,1]
[58,null,null,null,null,null,null,null,null,null,null,null,null,null,null,null,null,null,null,null,null,null,null,null,null,null,null,null,0,1]
[59,null,null,null,null,null,null,null,null,null,null,null,null,null,null,null,null,null,null,null,null,null,null,null,null,null,null,null,0,1]
[60,null,null,null,null,null,null,null,null,null,null,null,null,null,null,null,null,null,null,null,null,null,null,null,null,null,null,null,0,1]
[61,null,null,null,null,null,null,null,null,null,null,null,null,null,null,null,null,null,null,null,null,null,null,null,null,null,null,null,0,1]
[62,null,null,null,null,null,null,null,null,null,null,null,null,null,null,null,null,null,null,null,null,null,null,null,null,null,null,null,0,1]
[63,null,null,null,null,null,null,null,null,null,null,null,null,null,null,null,null,null,null,null,null,null,null,null,null,null,null,null,0,1]
[64,null,null,null,null,null,null,null,null,null,null,null,null,null,null,null,null,null,null,null,null,null,null,null,null,null,null,null,{"$f":"SUM(F70:AB70)","v":0},1]
[65,null,null,null,null,null,null,null,null,null,null,null,null,null,null,null,null,null,null,null,null,null,null,null,null,null,null,null,0,1]
[66,null,null,null,null,null,null,null,null,null,null,null,null,null,null,null,null,null,null,null,null,null,null,null,null,null,null,null,0,{"$f":"RANK(AC72,$AC$7:$AC$150,0)","v":1}]
[67,null,null,null,null,null,null,null,null,null,null,null,null,null,null,null,null,null,null,null,null,null,null,null,null,null,null,null,0,1]
[68,null,null,null,null,null,null,null,null,null,null,null,null,null,null,null,null,null,null,null,null,null,null,null,null,null,null,null,0,1]
[69,null,null,null,null,null,null,null,null,null,null,null,null,null,null,null,null,null,null,null,null,null,null,null,null,null,null,null,0,1]
[70,null,null,null,null,null,null,null,null,null,null,null,null,null,null,null,null,null,null,null,null,null,null,null,null,null,null,null,0,1]
[71,null,null,null,null,null,null,null,null,null,null,null,null,null,null,null,null,null,null,null,null,null,null,null,null,null,null,null,0,1]
[72,null,null,null,null,null,null,null,null,null,null,null,null,null,null,null,null,null,null,null,null,null,null,null,null,null,null,null,0,1]
[73,null,null,null,null,null,null,null,null,null,null,null,null,null,null,null,null,null,null,null,null,null,null,null,null,null,null,null,0,1]
[74,null,null,null,null,null,null,null,null,null,null,null,null,null,null,null,null,null,null,null,null,null,null,null,null,null,null,null,0,1]
[75,null,null,null,null,null,null,null,null,null,null,null,null,null,null,null,null,null,null,null,null,null,null,null,null,null,null,null,0,1]
[76,null,null,null,null,null,null,null,null,null,null,null,null,null,null,null,null,null,null,null,null,null,null,null,null,null,null,null,0,1]
[77,null,null,null,null,null,null,null,null,null,null,null,null,null,null,null,null,null,null,null,null,null,null,null,null,null,null,null,0,1]
[78,null,null,null,null,null,null,null,null,null,null,null,null,null,null,null,null,null,null,null,null,null,null,null,null,null,null,null,0,1]
[79,null,null,null,null,null,null,null,null,null,null,null,null,null,null,null,null,null,null,null,null,null,null,null,null,null,null,null,0,1]
[80,null,null,null,null,null,null,null,null,null,null,null,null,null,null,null,null,null,null,null,null,null,null,null,null,null,null,null,0,1]
[81,null,null,null,null,null,null,null,null,null,null,null,null,null,null,null,null,null,null,null,null,null,null,null,null,null,null,null,0,1]
[82,null,null,null,null,null,null,null,null,null,null,null,null,null,null,null,null,null,null,null,null,null,null,null,null,null,null,null,0,1]
[83,null,null,null,null,null,null,null,null,null,null,null,null,null,null,null,null,null,null,null,null,null,null,null,null,null,null,null,0,1]
[84,null,null,null,null,null,null,null,null,null,null,null,null,null,null,null,null,null,null,null,null,null,null,null,null,null,null,null,0,1]
[85,null,null,null,null,null,null,null,null,null,null,null,null,null,null,null,null,null,null,null,null,null,null,null,null,null,null,null,0,1]
[86,null,null,null,null,null,null,null,null,null,null,null,null,null,null,null,null,null,null,null,null,null,null,null,null,null,null,null,0,1]
[87,null,null,null,null,null,null,null,null,null,null,null,null,null,null,null,null,null,null,null,null,null,null,null,null,null,null,null,0,1]
[88,null,null,null,null,null,null,null,null,null,null,null,null,null,null,null,null,null,null,null,null,null,null,null,null,null,null,null,0,1]
[89,null,null,null,null,null,null,null,null,null,null,null,null,null,null,null,null,null,null,null,null,null,null,null,null,null,null,null,0,1]
[90,null,null,null,null,null,null,null,null,null,null,null,null,null,null,null,null,null,null,null,null,null,null,null,null,null,null,null,0,1]
[91,null,null,null,null,null,null,null,null,null,null,null,null,null,null,null,null,null,null,null,null,null,null,null,null,null,null,null,0,1]
[92,null,null,null,null,null,null,null,null,null,null,null,null,null,null,null,null,null,null,null,null,null,null,null,null,null,null,null,0,1]
[93,null,null,null,null,null,null,null,null,null,null,null,null,null,null,null,null,null,null,null,null,null,null,null,null,null,null,null,0,1]
[94,null,null,null,null,null,null,null,null,null,null,null,null,null,null,null,null,null,null,null,null,null,null,null,null,null,null,null,0,1]
[95,null,null,null,null,null,null,null,null,null,null,null,null,null,null,null,null,null,null,null,null,null,null,null,null,null,null,null,0,1]
[96,null,null,null,null,null,null,null,null,null,null,null,null,null,null,null,null,null,null,null,null,null,null,null,null,null,null,null,0,1]
[97,null,null,null,null,null,null,null,null,null,null,null,null,null,null,null,null,null,null,null,null,null,null,null,null,null,null,null,0,1]
[98,null,null,null,null,null,null,null,null,null,null,null,null,null,null,null,null,null,null,null,null,null,null,null,null,null,null,null,0,1]

{"sheet":"Grade 5","index":5,"n_rows":104,"n_cols":49,"rows_kept":104,"cut":false,"hidden":false,"merged":[[0,26,1,27],[0,28,1,29],[3,5,3,12],[3,14,3,21],[3,29,4,29]]}
[null,null,null,null,null,null,null,null,null,null,null,null,null,"First SEMESTER",null,null,null,null,null,null,null,null,null,null,null,null,"Students Number",null,{"$f":"COUNT(B7:B97)","v":0}]
[null,null,""]
[0,1,2,3,4,5,6,7,8,9,10,11,12,13,14,15,16,17,18,19,20,21,22,23,24,25,26,27,28,29]
[null,null,null,null,null,"Arabic",null,null,null,null,null,null,null,null,"English",null,null,null,null,null,null,null,null,null,null,null,null,null,null,"Rank"]
[null,null,null,null,null,"قراءة","تعبير شفهي","إصغاء","إستظهار","إملاء","قواعد","تحليل نص","تعبير كتابي","خط ونسخ","Reading","Oral Com","Listening","Poem","Dictation","Phonics","Read Com","Writing","Penmanship","Maths","Siences","Sports","Arts","Skills","Total Marks"]
["Adm No.","Roll No.","Name","Class","Section",10,10,10,10,10,10,10,10,10,10,10,10,10,10,10,10,10,10,60,30,10,10,10,{"$f":"SUM(F6:AB6)","v":300}]
[1,null,null,null,null,null,null,null,null,null,null,null,null,null,null,null,null,null,null,null,null,null,null,null,null,null,null,null,0,{"$f":"RANK(AC7,$AC$7:$AC$150,0)","v":1},null,null,null,null,null,null,null,null,null,null,null,null,null,null,null,null,null,"YELLOW","A"]
[2,null,null,null,null,null,null,null,null,null,null,null,null,null,null,null,null,null,null,null,null,null,null,null,null,null,null,null,0,{"$f":"RANK(AC8,$AC$7:$AC$150,0)","v":1},null,null,null,null,null,null,null,null,null,null,null,null,null,null,null,null,null,"FARMERS","B"]
[3,null,null,null,null,null,null,null,null,null,null,null,null,null,null,null,null,null,null,null,null,null,null,null,null,null,null,null,0,1,null,null,null,null,null,null,null,null,null,null,null,null,null,null,null,null,null,"BUS-MABSOUT","C"]
[4,null,null,null,null,null,null,null,null,null,null,null,null,null,null,null,null,null,null,null,null,null,null,null,null,null,null,null,0,1,null,null,null,null,null,null,null,null,null,null,null,null,null,null,null,null,null,"BLOOMERS","D"]
[5,null,null,null,null,null,null,null,null,null,null,null,null,null,null,null,null,null,null,null,null,null,null,null,null,null,null,null,0,1,null,null,null,null,null,null,null,null,null,null,null,null,null,null,null,null,null,"CACTUS","E"]
[6,null,null,null,null,null,null,null,null,null,null,null,null,null,null,null,null,null,null,null,null,null,null,null,null,null,null,null,0,1,null,null,null,null,null,null,null,null,null,null,null,null,null,null,null,null,null,"EDISON","F"]
[7,null,null,null,null,null,null,null,null,null,null,null,null,null,null,null,null,null,null,null,null,null,null,null,null,null,null,null,0,1]
[8,null,null,null,null,null,null,null,null,null,null,null,null,null,null,null,null,null,null,null,null,null,null,null,null,null,null,null,0,1]
[9,null,null,null,null,null,null,null,null,null,null,null,null,null,null,null,null,null,null,null,null,null,null,null,null,null,null,null,0,1]
[10,null,null,null,null,null,null,null,null,null,null,null,null,null,null,null,null,null,null,null,null,null,null,null,null,null,null,null,0,1]
[11,null,null,null,null,null,null,null,null,null,null,null,null,null,null,null,null,null,null,null,null,null,null,null,null,null,null,null,0,1]
[12,null,null,null,null,null,null,null,null,null,null,null,null,null,null,null,null,null,null,null,null,null,null,null,null,null,null,null,0,1]
[13,null,null,null,null,null,null,null,null,null,null,null,null,null,null,null,null,null,null,null,null,null,null,null,null,null,null,null,0,1]
[14,null,null,null,null,null,null,null,null,null,null,null,null,null,null,null,null,null,null,null,null,null,null,null,null,null,null,null,0,1]
[15,null,null,null,null,null,null,null,null,null,null,null,null,null,null,null,null,null,null,null,null,null,null,null,null,null,null,null,0,1]
[16,null,null,null,null,null,null,null,null,null,null,null,null,null,null,null,null,null,null,null,null,null,null,null,null,null,null,null,0,1]
[17,null,null,null,null,null,null,null,null,null,null,null,null,null,null,null,null,null,null,null,null,null,null,null,null,null,null,null,0,1]
[18,null,null,null,null,null,null,null,null,null,null,null,null,null,null,null,null,null,null,null,null,null,null,null,null,null,null,null,0,1]
[19,null,null,null,null,null,null,null,null,null,null,null,null,null,null,null,null,null,null,null,null,null,null,null,null,null,null,null,0,1]
[20,null,null,null,null,null,null,null,null,null,null,null,null,null,null,null,null,null,null,null,null,null,null,null,null,null,null,null,0,1]
[21,null,null,null,null,null,null,null,null,null,null,null,null,null,null,null,null,null,null,null,null,null,null,null,null,null,null,null,0,1]
[22,null,null,null,null,null,null,null,null,null,null,null,null,null,null,null,null,null,null,null,null,null,null,null,null,null,null,null,0,1]
[23,null,null,null,null,null,null,null,null,null,null,null,null,null,null,null,null,null,null,null,null,null,null,null,null,null,null,null,0,1]
[24,null,null,null,null,null,null,null,null,null,null,null,null,null,null,null,null,null,null,null,null,null,null,null,null,null,null,null,0,1]
[25,null,null,null,null,null,null,null,null,null,null,null,null,null,null,null,null,null,null,null,null,null,null,null,null,null,null,null,0,1]
[26,null,null,null,null,null,null,null,null,null,null,null,null,null,null,null,null,null,null,null,null,null,null,null,null,null,null,null,0,1]
[27,null,null,null,null,null,null,null,null,null,null,null,null,null,null,null,null,null,null,null,null,null,null,null,null,null,null,null,0,1]
[28,null,null,null,null,null,null,null,null,null,null,null,null,null,null,null,null,null,null,null,null,null,null,null,null,null,null,null,0,1]
[29,null,null,null,null,null,null,null,null,null,null,null,null,null,null,null,null,null,null,null,null,null,null,null,null,null,null,null,0,1]
[30,null,null,null,null,null,null,null,null,null,null,null,null,null,null,null,null,null,null,null,null,null,null,null,null,null,null,null,0,1]
[31,null,null,null,null,null,null,null,null,null,null,null,null,null,null,null,null,null,null,null,null,null,null,null,null,null,null,null,0,1]
[32,null,null,null,null,null,null,null,null,null,null,null,null,null,null,null,null,null,null,null,null,null,null,null,null,null,null,null,0,1]
[33,null,null,null,null,null,null,null,null,null,null,null,null,null,null,null,null,null,null,null,null,null,null,null,null,null,null,null,0,1]
[34,null,null,null,null,null,null,null,null,null,null,null,null,null,null,null,null,null,null,null,null,null,null,null,null,null,null,null,0,1]
[35,null,null,null,null,null,null,null,null,null,null,null,null,null,null,null,null,null,null,null,null,null,null,null,null,null,null,null,0,1]
[36,null,null,null,null,null,null,null,null,null,null,null,null,null,null,null,null,null,null,null,null,null,null,null,null,null,null,null,0,1]
[37,null,null,null,null,null,null,null,null,null,null,null,null,null,null,null,null,null,null,null,null,null,null,null,null,null,null,null,0,1]
[38,null,null,null,null,null,null,null,null,null,null,null,null,null,null,null,null,null,null,null,null,null,null,null,null,null,null,null,0,1]
[39,null,null,null,null,null,null,null,null,null,null,null,null,null,null,null,null,null,null,null,null,null,null,null,null,null,null,null,0,1]
[40,null,null,null,null,null,null,null,null,null,null,null,null,null,null,null,null,null,null,null,null,null,null,null,null,null,null,null,0,1]
[41,null,null,null,null,null,null,null,null,null,null,null,null,null,null,null,null,null,null,null,null,null,null,null,null,null,null,null,0,1]
[42,null,null,null,null,null,null,null,null,null,null,null,null,null,null,null,null,null,null,null,null,null,null,null,null,null,null,null,0,1]
[43,null,null,null,null,null,null,null,null,null,null,null,null,null,null,null,null,null,null,null,null,null,null,null,null,null,null,null,0,1]
[44,null,null,null,null,null,null,null,null,null,null,null,null,null,null,null,null,null,null,null,null,null,null,null,null,null,null,null,0,1]
[45,null,null,null,null,null,null,null,null,null,null,null,null,null,null,null,null,null,null,null,null,null,null,null,null,null,null,null,0,1]
[46,null,null,null,null,null,null,null,null,null,null,null,null,null,null,null,null,null,null,null,null,null,null,null,null,null,null,null,0,1]
[47,null,null,null,null,null,null,null,null,null,null,null,null,null,null,null,null,null,null,null,null,null,null,null,null,null,null,null,0,1]
[48,null,null,null,null,null,null,null,null,null,null,null,null,null,null,null,null,null,null,null,null,null,null,null,null,null,null,null,0,1]
[49,null,null,null,null,null,null,null,null,null,null,null,null,null,null,null,null,null,null,null,null,null,null,null,null,null,null,null,0,1]
[50,null,null,null,null,null,null,null,null,null,null,null,null,null,null,null,null,null,null,null,null,null,null,null,null,null,null,null,0,1]
[51,null,null,null,null,null,null,null,null,null,null,null,null,null,null,null,null,null,null,null,null,null,null,null,null,null,null,null,0,1]
[52,null,null,null,null,null,null,null,null,null,null,null,null,null,null,null,null,null,null,null,null,null,null,null,null,null,null,null,0,1]
[53,null,null,null,null,null,null,null,null,null,null,null,null,null,null,null,null,null,null,null,null,null,null,null,null,null,null,null,0,1]
[54,null,null,null,null,null,null,null,null,null,null,null,null,null,null,null,null,null,null,null,null,null,null,null,null,null,null,null,0,1]
[55,null,null,null,null,null,null,null,null,null,null,null,null,null,null,null,null,null,null,null,null,null,null,null,null,null,null,null,0,1]
[56,null,null,null,null,null,null,null,null,null,null,null,null,null,null,null,null,null,null,null,null,null,null,null,null,null,null,null,0,1]
[57,null,null,null,null,null,null,null,null,null,null,null,null,null,null,null,null,null,null,null,null,null,null,null,null,null,null,null,0,1]
[58,null,null,null,null,null,null,null,null,null,null,null,null,null,null,null,null,null,null,null,null,null,null,null,null,null,null,null,0,1]
[59,null,null,null,null,null,null,null,null,null,null,null,null,null,null,null,null,null,null,null,null,null,null,null,null,null,null,null,0,1]
[60,null,null,null,null,null,null,null,null,null,null,null,null,null,null,null,null,null,null,null,null,null,null,null,null,null,null,null,0,1]
[61,null,null,null,null,null,null,null,null,null,null,null,null,null,null,null,null,null,null,null,null,null,null,null,null,null,null,null,0,1]
[62,null,null,null,null,null,null,null,null,null,null,null,null,null,null,null,null,null,null,null,null,null,null,null,null,null,null,null,0,1]
[63,null,null,null,null,null,null,null,null,null,null,null,null,null,null,null,null,null,null,null,null,null,null,null,null,null,null,null,0,1]
[64,null,null,null,null,null,null,null,null,null,null,null,null,null,null,null,null,null,null,null,null,null,null,null,null,null,null,null,{"$f":"SUM(F70:AB70)","v":0},1]
[65,null,null,null,null,null,null,null,null,null,null,null,null,null,null,null,null,null,null,null,null,null,null,null,null,null,null,null,0,1]
[66,null,null,null,null,null,null,null,null,null,null,null,null,null,null,null,null,null,null,null,null,null,null,null,null,null,null,null,0,{"$f":"RANK(AC72,$AC$7:$AC$150,0)","v":1}]
[67,null,null,null,null,null,null,null,null,null,null,null,null,null,null,null,null,null,null,null,null,null,null,null,null,null,null,null,0,1]
[68,null,null,null,null,null,null,null,null,null,null,null,null,null,null,null,null,null,null,null,null,null,null,null,null,null,null,null,0,1]
[69,null,null,null,null,null,null,null,null,null,null,null,null,null,null,null,null,null,null,null,null,null,null,null,null,null,null,null,0,1]
[70,null,null,null,null,null,null,null,null,null,null,null,null,null,null,null,null,null,null,null,null,null,null,null,null,null,null,null,0,1]
[71,null,null,null,null,null,null,null,null,null,null,null,null,null,null,null,null,null,null,null,null,null,null,null,null,null,null,null,0,1]
[72,null,null,null,null,null,null,null,null,null,null,null,null,null,null,null,null,null,null,null,null,null,null,null,null,null,null,null,0,1]
[73,null,null,null,null,null,null,null,null,null,null,null,null,null,null,null,null,null,null,null,null,null,null,null,null,null,null,null,0,1]
[74,null,null,null,null,null,null,null,null,null,null,null,null,null,null,null,null,null,null,null,null,null,null,null,null,null,null,null,0,1]
[75,null,null,null,null,null,null,null,null,null,null,null,null,null,null,null,null,null,null,null,null,null,null,null,null,null,null,null,0,1]
[76,null,null,null,null,null,null,null,null,null,null,null,null,null,null,null,null,null,null,null,null,null,null,null,null,null,null,null,0,1]
[77,null,null,null,null,null,null,null,null,null,null,null,null,null,null,null,null,null,null,null,null,null,null,null,null,null,null,null,0,1]
[78,null,null,null,null,null,null,null,null,null,null,null,null,null,null,null,null,null,null,null,null,null,null,null,null,null,null,null,0,1]
[79,null,null,null,null,null,null,null,null,null,null,null,null,null,null,null,null,null,null,null,null,null,null,null,null,null,null,null,0,1]
[80,null,null,null,null,null,null,null,null,null,null,null,null,null,null,null,null,null,null,null,null,null,null,null,null,null,null,null,0,1]
[81,null,null,null,null,null,null,null,null,null,null,null,null,null,null,null,null,null,null,null,null,null,null,null,null,null,null,null,0,1]
[82,null,null,null,null,null,null,null,null,null,null,null,null,null,null,null,null,null,null,null,null,null,null,null,null,null,null,null,0,1]
[83,null,null,null,null,null,null,null,null,null,null,null,null,null,null,null,null,null,null,null,null,null,null,null,null,null,null,null,0,1]
[84,null,null,null,null,null,null,null,null,null,null,null,null,null,null,null,null,null,null,null,null,null,null,null,null,null,null,null,0,1]
[85,null,null,null,null,null,null,null,null,null,null,null,null,null,null,null,null,null,null,null,null,null,null,null,null,null,null,null,0,1]
[86,null,null,null,null,null,null,null,null,null,null,null,null,null,null,null,null,null,null,null,null,null,null,null,null,null,null,null,0,1]
[87,null,null,null,null,null,null,null,null,null,null,null,null,null,null,null,null,null,null,null,null,null,null,null,null,null,null,null,0,1]
[88,null,null,null,null,null,null,null,null,null,null,null,null,null,null,null,null,null,null,null,null,null,null,null,null,null,null,null,0,1]
[89,null,null,null,null,null,null,null,null,null,null,null,null,null,null,null,null,null,null,null,null,null,null,null,null,null,null,null,0,1]
[90,null,null,null,null,null,null,null,null,null,null,null,null,null,null,null,null,null,null,null,null,null,null,null,null,null,null,null,0,1]
[91,null,null,null,null,null,null,null,null,null,null,null,null,null,null,null,null,null,null,null,null,null,null,null,null,null,null,null,0,1]
[92,null,null,null,null,null,null,null,null,null,null,null,null,null,null,null,null,null,null,null,null,null,null,null,null,null,null,null,0,1]
[93,null,null,null,null,null,null,null,null,null,null,null,null,null,null,null,null,null,null,null,null,null,null,null,null,null,null,null,0,1]
[94,null,null,null,null,null,null,null,null,null,null,null,null,null,null,null,null,null,null,null,null,null,null,null,null,null,null,null,0,1]
[95,null,null,null,null,null,null,null,null,null,null,null,null,null,null,null,null,null,null,null,null,null,null,null,null,null,null,null,0,1]
[96,null,null,null,null,null,null,null,null,null,null,null,null,null,null,null,null,null,null,null,null,null,null,null,null,null,null,null,0,1]
[97,null,null,null,null,null,null,null,null,null,null,null,null,null,null,null,null,null,null,null,null,null,null,null,null,null,null,null,0,1]
[98,null,null,null,null,null,null,null,null,null,null,null,null,null,null,null,null,null,null,null,null,null,null,null,null,null,null,null,0,1]

{"sheet":"Grade 6","index":6,"n_rows":104,"n_cols":49,"rows_kept":104,"cut":false,"hidden":false,"merged":[[0,26,1,27],[0,28,1,29],[3,5,3,12],[3,14,3,21],[3,29,4,29]]}
[null,null,null,null,null,null,null,null,null,null,null,null,null,"First SEMESTER",null,null,null,null,null,null,null,null,null,null,null,null,"Students Number",null,{"$f":"COUNT(B7:B97)","v":0}]
[null,null,""]
[0,1,2,3,4,5,6,7,8,9,10,11,12,13,14,15,16,17,18,19,20,21,22,23,24,25,26,27,28,29]
[null,null,null,null,null,"Arabic",null,null,null,null,null,null,null,null,"English",null,null,null,null,null,null,null,null,null,null,null,null,null,null,"Rank"]
[null,null,null,null,null,"قراءة","تعبير شفهي","إصغاء","إستظهار","إملاء","قواعد","تحليل نص","تعبير كتابي","خط ونسخ","Reading","Oral Com","Listening","Poem","Dictation","Phonics","Read Com","Writing","Penmanship","Maths","Siences","Sports","Arts","Skills","Total Marks"]
["Adm No.","Roll No.","Name","Class","Section",10,10,10,10,10,10,10,10,10,10,10,10,10,10,10,10,10,10,60,30,10,10,10,{"$f":"SUM(F6:AB6)","v":300}]
[1,null,null,null,null,null,null,null,null,null,null,null,null,null,null,null,null,null,null,null,null,null,null,null,null,null,null,null,0,{"$f":"RANK(AC7,$AC$7:$AC$150,0)","v":1},null,null,null,null,null,null,null,null,null,null,null,null,null,null,null,null,null,"YELLOW","A"]
[2,null,null,null,null,null,null,null,null,null,null,null,null,null,null,null,null,null,null,null,null,null,null,null,null,null,null,null,0,{"$f":"RANK(AC8,$AC$7:$AC$150,0)","v":1},null,null,null,null,null,null,null,null,null,null,null,null,null,null,null,null,null,"FARMERS","B"]
[3,null,null,null,null,null,null,null,null,null,null,null,null,null,null,null,null,null,null,null,null,null,null,null,null,null,null,null,0,1,null,null,null,null,null,null,null,null,null,null,null,null,null,null,null,null,null,"BUS-MABSOUT","C"]
[4,null,null,null,null,null,null,null,null,null,null,null,null,null,null,null,null,null,null,null,null,null,null,null,null,null,null,null,0,1,null,null,null,null,null,null,null,null,null,null,null,null,null,null,null,null,null,"BLOOMERS","D"]
[5,null,null,null,null,null,null,null,null,null,null,null,null,null,null,null,null,null,null,null,null,null,null,null,null,null,null,null,0,1,null,null,null,null,null,null,null,null,null,null,null,null,null,null,null,null,null,"CACTUS","E"]
[6,null,null,null,null,null,null,null,null,null,null,null,null,null,null,null,null,null,null,null,null,null,null,null,null,null,null,null,0,1,null,null,null,null,null,null,null,null,null,null,null,null,null,null,null,null,null,"EDISON","F"]
[7,null,null,null,null,null,null,null,null,null,null,null,null,null,null,null,null,null,null,null,null,null,null,null,null,null,null,null,0,1]
[8,null,null,null,null,null,null,null,null,null,null,null,null,null,null,null,null,null,null,null,null,null,null,null,null,null,null,null,0,1]
[9,null,null,null,null,null,null,null,null,null,null,null,null,null,null,null,null,null,null,null,null,null,null,null,null,null,null,null,0,1]
[10,null,null,null,null,null,null,null,null,null,null,null,null,null,null,null,null,null,null,null,null,null,null,null,null,null,null,null,0,1]
[11,null,null,null,null,null,null,null,null,null,null,null,null,null,null,null,null,null,null,null,null,null,null,null,null,null,null,null,0,1]
[12,null,null,null,null,null,null,null,null,null,null,null,null,null,null,null,null,null,null,null,null,null,null,null,null,null,null,null,0,1]
[13,null,null,null,null,null,null,null,null,null,null,null,null,null,null,null,null,null,null,null,null,null,null,null,null,null,null,null,0,1]
[14,null,null,null,null,null,null,null,null,null,null,null,null,null,null,null,null,null,null,null,null,null,null,null,null,null,null,null,0,1]
[15,null,null,null,null,null,null,null,null,null,null,null,null,null,null,null,null,null,null,null,null,null,null,null,null,null,null,null,0,1]
[16,null,null,null,null,null,null,null,null,null,null,null,null,null,null,null,null,null,null,null,null,null,null,null,null,null,null,null,0,1]
[17,null,null,null,null,null,null,null,null,null,null,null,null,null,null,null,null,null,null,null,null,null,null,null,null,null,null,null,0,1]
[18,null,null,null,null,null,null,null,null,null,null,null,null,null,null,null,null,null,null,null,null,null,null,null,null,null,null,null,0,1]
[19,null,null,null,null,null,null,null,null,null,null,null,null,null,null,null,null,null,null,null,null,null,null,null,null,null,null,null,0,1]
[20,null,null,null,null,null,null,null,null,null,null,null,null,null,null,null,null,null,null,null,null,null,null,null,null,null,null,null,0,1]
[21,null,null,null,null,null,null,null,null,null,null,null,null,null,null,null,null,null,null,null,null,null,null,null,null,null,null,null,0,1]
[22,null,null,null,null,null,null,null,null,null,null,null,null,null,null,null,null,null,null,null,null,null,null,null,null,null,null,null,0,1]
[23,null,null,null,null,null,null,null,null,null,null,null,null,null,null,null,null,null,null,null,null,null,null,null,null,null,null,null,0,1]
[24,null,null,null,null,null,null,null,null,null,null,null,null,null,null,null,null,null,null,null,null,null,null,null,null,null,null,null,0,1]
[25,null,null,null,null,null,null,null,null,null,null,null,null,null,null,null,null,null,null,null,null,null,null,null,null,null,null,null,0,1]
[26,null,null,null,null,null,null,null,null,null,null,null,null,null,null,null,null,null,null,null,null,null,null,null,null,null,null,null,0,1]
[27,null,null,null,null,null,null,null,null,null,null,null,null,null,null,null,null,null,null,null,null,null,null,null,null,null,null,null,0,1]
[28,null,null,null,null,null,null,null,null,null,null,null,null,null,null,null,null,null,null,null,null,null,null,null,null,null,null,null,0,1]
[29,null,null,null,null,null,null,null,null,null,null,null,null,null,null,null,null,null,null,null,null,null,null,null,null,null,null,null,0,1]
[30,null,null,null,null,null,null,null,null,null,null,null,null,null,null,null,null,null,null,null,null,null,null,null,null,null,null,null,0,1]
[31,null,null,null,null,null,null,null,null,null,null,null,null,null,null,null,null,null,null,null,null,null,null,null,null,null,null,null,0,1]
[32,null,null,null,null,null,null,null,null,null,null,null,null,null,null,null,null,null,null,null,null,null,null,null,null,null,null,null,0,1]
[33,null,null,null,null,null,null,null,null,null,null,null,null,null,null,null,null,null,null,null,null,null,null,null,null,null,null,null,0,1]
[34,null,null,null,null,null,null,null,null,null,null,null,null,null,null,null,null,null,null,null,null,null,null,null,null,null,null,null,0,1]
[35,null,null,null,null,null,null,null,null,null,null,null,null,null,null,null,null,null,null,null,null,null,null,null,null,null,null,null,0,1]
[36,null,null,null,null,null,null,null,null,null,null,null,null,null,null,null,null,null,null,null,null,null,null,null,null,null,null,null,0,1]
[37,null,null,null,null,null,null,null,null,null,null,null,null,null,null,null,null,null,null,null,null,null,null,null,null,null,null,null,0,1]
[38,null,null,null,null,null,null,null,null,null,null,null,null,null,null,null,null,null,null,null,null,null,null,null,null,null,null,null,0,1]
[39,null,null,null,null,null,null,null,null,null,null,null,null,null,null,null,null,null,null,null,null,null,null,null,null,null,null,null,0,1]
[40,null,null,null,null,null,null,null,null,null,null,null,null,null,null,null,null,null,null,null,null,null,null,null,null,null,null,null,0,1]
[41,null,null,null,null,null,null,null,null,null,null,null,null,null,null,null,null,null,null,null,null,null,null,null,null,null,null,null,0,1]
[42,null,null,null,null,null,null,null,null,null,null,null,null,null,null,null,null,null,null,null,null,null,null,null,null,null,null,null,0,1]
[43,null,null,null,null,null,null,null,null,null,null,null,null,null,null,null,null,null,null,null,null,null,null,null,null,null,null,null,0,1]
[44,null,null,null,null,null,null,null,null,null,null,null,null,null,null,null,null,null,null,null,null,null,null,null,null,null,null,null,0,1]
[45,null,null,null,null,null,null,null,null,null,null,null,null,null,null,null,null,null,null,null,null,null,null,null,null,null,null,null,0,1]
[46,null,null,null,null,null,null,null,null,null,null,null,null,null,null,null,null,null,null,null,null,null,null,null,null,null,null,null,0,1]
[47,null,null,null,null,null,null,null,null,null,null,null,null,null,null,null,null,null,null,null,null,null,null,null,null,null,null,null,0,1]
[48,null,null,null,null,null,null,null,null,null,null,null,null,null,null,null,null,null,null,null,null,null,null,null,null,null,null,null,0,1]
[49,null,null,null,null,null,null,null,null,null,null,null,null,null,null,null,null,null,null,null,null,null,null,null,null,null,null,null,0,1]
[50,null,null,null,null,null,null,null,null,null,null,null,null,null,null,null,null,null,null,null,null,null,null,null,null,null,null,null,0,1]
[51,null,null,null,null,null,null,null,null,null,null,null,null,null,null,null,null,null,null,null,null,null,null,null,null,null,null,null,0,1]
[52,null,null,null,null,null,null,null,null,null,null,null,null,null,null,null,null,null,null,null,null,null,null,null,null,null,null,null,0,1]
[53,null,null,null,null,null,null,null,null,null,null,null,null,null,null,null,null,null,null,null,null,null,null,null,null,null,null,null,0,1]
[54,null,null,null,null,null,null,null,null,null,null,null,null,null,null,null,null,null,null,null,null,null,null,null,null,null,null,null,0,1]
[55,null,null,null,null,null,null,null,null,null,null,null,null,null,null,null,null,null,null,null,null,null,null,null,null,null,null,null,0,1]
[56,null,null,null,null,null,null,null,null,null,null,null,null,null,null,null,null,null,null,null,null,null,null,null,null,null,null,null,0,1]
[57,null,null,null,null,null,null,null,null,null,null,null,null,null,null,null,null,null,null,null,null,null,null,null,null,null,null,null,0,1]
[58,null,null,null,null,null,null,null,null,null,null,null,null,null,null,null,null,null,null,null,null,null,null,null,null,null,null,null,0,1]
[59,null,null,null,null,null,null,null,null,null,null,null,null,null,null,null,null,null,null,null,null,null,null,null,null,null,null,null,0,1]
[60,null,null,null,null,null,null,null,null,null,null,null,null,null,null,null,null,null,null,null,null,null,null,null,null,null,null,null,0,1]
[61,null,null,null,null,null,null,null,null,null,null,null,null,null,null,null,null,null,null,null,null,null,null,null,null,null,null,null,0,1]
[62,null,null,null,null,null,null,null,null,null,null,null,null,null,null,null,null,null,null,null,null,null,null,null,null,null,null,null,0,1]
[63,null,null,null,null,null,null,null,null,null,null,null,null,null,null,null,null,null,null,null,null,null,null,null,null,null,null,null,0,1]
[64,null,null,null,null,null,null,null,null,null,null,null,null,null,null,null,null,null,null,null,null,null,null,null,null,null,null,null,{"$f":"SUM(F70:AB70)","v":0},1]
[65,null,null,null,null,null,null,null,null,null,null,null,null,null,null,null,null,null,null,null,null,null,null,null,null,null,null,null,0,1]
[66,null,null,null,null,null,null,null,null,null,null,null,null,null,null,null,null,null,null,null,null,null,null,null,null,null,null,null,0,{"$f":"RANK(AC72,$AC$7:$AC$150,0)","v":1}]
[67,null,null,null,null,null,null,null,null,null,null,null,null,null,null,null,null,null,null,null,null,null,null,null,null,null,null,null,0,1]
[68,null,null,null,null,null,null,null,null,null,null,null,null,null,null,null,null,null,null,null,null,null,null,null,null,null,null,null,0,1]
[69,null,null,null,null,null,null,null,null,null,null,null,null,null,null,null,null,null,null,null,null,null,null,null,null,null,null,null,0,1]
[70,null,null,null,null,null,null,null,null,null,null,null,null,null,null,null,null,null,null,null,null,null,null,null,null,null,null,null,0,1]
[71,null,null,null,null,null,null,null,null,null,null,null,null,null,null,null,null,null,null,null,null,null,null,null,null,null,null,null,0,1]
[72,null,null,null,null,null,null,null,null,null,null,null,null,null,null,null,null,null,null,null,null,null,null,null,null,null,null,null,0,1]
[73,null,null,null,null,null,null,null,null,null,null,null,null,null,null,null,null,null,null,null,null,null,null,null,null,null,null,null,0,1]
[74,null,null,null,null,null,null,null,null,null,null,null,null,null,null,null,null,null,null,null,null,null,null,null,null,null,null,null,0,1]
[75,null,null,null,null,null,null,null,null,null,null,null,null,null,null,null,null,null,null,null,null,null,null,null,null,null,null,null,0,1]
[76,null,null,null,null,null,null,null,null,null,null,null,null,null,null,null,null,null,null,null,null,null,null,null,null,null,null,null,0,1]
[77,null,null,null,null,null,null,null,null,null,null,null,null,null,null,null,null,null,null,null,null,null,null,null,null,null,null,null,0,1]
[78,null,null,null,null,null,null,null,null,null,null,null,null,null,null,null,null,null,null,null,null,null,null,null,null,null,null,null,0,1]
[79,null,null,null,null,null,null,null,null,null,null,null,null,null,null,null,null,null,null,null,null,null,null,null,null,null,null,null,0,1]
[80,null,null,null,null,null,null,null,null,null,null,null,null,null,null,null,null,null,null,null,null,null,null,null,null,null,null,null,0,1]
[81,null,null,null,null,null,null,null,null,null,null,null,null,null,null,null,null,null,null,null,null,null,null,null,null,null,null,null,0,1]
[82,null,null,null,null,null,null,null,null,null,null,null,null,null,null,null,null,null,null,null,null,null,null,null,null,null,null,null,0,1]
[83,null,null,null,null,null,null,null,null,null,null,null,null,null,null,null,null,null,null,null,null,null,null,null,null,null,null,null,0,1]
[84,null,null,null,null,null,null,null,null,null,null,null,null,null,null,null,null,null,null,null,null,null,null,null,null,null,null,null,0,1]
[85,null,null,null,null,null,null,null,null,null,null,null,null,null,null,null,null,null,null,null,null,null,null,null,null,null,null,null,0,1]
[86,null,null,null,null,null,null,null,null,null,null,null,null,null,null,null,null,null,null,null,null,null,null,null,null,null,null,null,0,1]
[87,null,null,null,null,null,null,null,null,null,null,null,null,null,null,null,null,null,null,null,null,null,null,null,null,null,null,null,0,1]
[88,null,null,null,null,null,null,null,null,null,null,null,null,null,null,null,null,null,null,null,null,null,null,null,null,null,null,null,0,1]
[89,null,null,null,null,null,null,null,null,null,null,null,null,null,null,null,null,null,null,null,null,null,null,null,null,null,null,null,0,1]
[90,null,null,null,null,null,null,null,null,null,null,null,null,null,null,null,null,null,null,null,null,null,null,null,null,null,null,null,0,1]
[91,null,null,null,null,null,null,null,null,null,null,null,null,null,null,null,null,null,null,null,null,null,null,null,null,null,null,null,0,1]
[92,null,null,null,null,null,null,null,null,null,null,null,null,null,null,null,null,null,null,null,null,null,null,null,null,null,null,null,0,1]
[93,null,null,null,null,null,null,null,null,null,null,null,null,null,null,null,null,null,null,null,null,null,null,null,null,null,null,null,0,1]
[94,null,null,null,null,null,null,null,null,null,null,null,null,null,null,null,null,null,null,null,null,null,null,null,null,null,null,null,0,1]
[95,null,null,null,null,null,null,null,null,null,null,null,null,null,null,null,null,null,null,null,null,null,null,null,null,null,null,null,0,1]
[96,null,null,null,null,null,null,null,null,null,null,null,null,null,null,null,null,null,null,null,null,null,null,null,null,null,null,null,0,1]
[97,null,null,null,null,null,null,null,null,null,null,null,null,null,null,null,null,null,null,null,null,null,null,null,null,null,null,null,0,1]
[98,null,null,null,null,null,null,null,null,null,null,null,null,null,null,null,null,null,null,null,null,null,null,null,null,null,null,null,0,1]

{"sheet":"Certificates","index":7,"n_rows":382,"n_cols":18,"rows_kept":382,"cut":false,"hidden":false,"merged":[[22,9,23,12],[8,8,8,16],[9,8,9,16],[7,8,7,16],[4,8,4,16],[375,5,377,6],[311,5,311,6],[313,5,315,6],[317,5,317,6],[320,5,321,6],[324,5,324,6],[327,5,329,6],[279,5,281,6],[299,5,299,6],[365,5,365,6],[368,5,369,6],[372,5,372,6],[125,5,125,6],[180,5,180,6],[183,5,185,6],[203,5,203,6],[209,5,209,6],[87,5,89,6],[107,5,107,6],[113,5,113,6],[119,5,119,6],[121,5,123,6],[176,5,177,6],[128,5,129,6],[132,5,132,6],[135,5,137,6],[217,5,219,6],[215,5,215,6],[167,5,167,6],[173,5,173,6],[155,5,155,6],[161,5,161,6],[169,5,171,6],[347,5,347,6],[353,5,353,6],[359,5,359,6],[361,5,363,6],[221,5,221,6],[224,5,225,6],[305,5,305,6],[228,5,228,6],[231,5,233,6],[251,5,251,6],[257,5,257,6],[263,5,263,6],[265,5,267,6],[269,5,269,6],[272,5,273,6],[276,5,276,6],[73,5,75,6],[77,5,77,6],[80,5,81,6],[84,5,84,6],[59,5,59,6],[65,5,65,6],[71,5,71,6],[36,5,36,6],[39,5,41,6],[11,5,11,6],[17,5,17,6],[23,5,23,6],[25,5,27,6],[29,5,29,6],[32,5,33,6]]}
[]
[]
[]
[]
[null,null,null,null,null,null,null,null,"هل استطيع تحديد بأمر أو كود طباعة كل الشهادات التي تحوي على اسم الصف المطلوب ؟",null,null,null,null,null,null,null,null,1]
["GRATE REPPORT ",null,null,null,null,"DATE :","2021-11-11"]
[]
["NAME ",null,{"$f":"VLOOKUP(F8,Marks!$B$3:$AI$22,2,0)","v":"Omar Ahmad Zein"},null,null,220,"ID No.",null,"هل هناك كود ترحيل البيانات كل صف  الى شيت مختلف ؟ ",null,null,null,null,null,null,null,null,2]
["Class",null,{"$f":"VLOOKUP(F8,Marks!$B$3:$AI$22,3,0)","v":"Grade 1"},null,null,{"$f":"Marks!$A$1","v":"2020-2021"},"Year"]
["Section",null,{"$f":"VLOOKUP(F8,[1]Marks!$B$3:$AI$22,4,0)","v":"A"},null,null,{"$f":"Marks!$N$1","v":"First "},"Semester",null," اعمل على تنسيق اليوزرفورم أيضا   هل هناك كود للطباعة بنفس الشروط ولكن من اليوزر فورم ؟",null,null,null,null,null,null,null,null,3]
[]
["Subjets","Maximum Mark","Chapter Mark","Remarks",null,"Absence"]
[{"$f":"[1]Marks!$F$5","v":"قراءة"},{"$f":"Marks!$F$6","v":10},{"$f":"VLOOKUP(F8,Marks!$B$3:$AI$22,5,0)","v":8}]
[{"$f":"[1]Marks!$G$5","v":"تعبير شفهي"},{"$f":"Marks!$G$6","v":10},{"$f":"VLOOKUP(F8,Marks!$B$3:$AI$22,6,0)","v":2}]
[{"$f":"[1]Marks!$H$5","v":"إصغاء"},{"$f":"Marks!$H$6","v":10},{"$f":"VLOOKUP(F8, Marks!$B$3:$AI$22,7,0)","v":3}]
[{"$f":"[1]Marks!$I$5","v":"إستظهار"},{"$f":"Marks!$I$6","v":10},{"$f":"VLOOKUP(F8, Marks!$B$3:$AI$22,8,0)","v":8}]
[{"$f":"[1]Marks!$J$5","v":"إملاء"},{"$f":"Marks!$J$6","v":10},{"$f":"VLOOKUP(F8, Marks!$B$3:$AI$22,9,0)","v":2}]
[{"$f":"[1]Marks!$K$5","v":"قواعد"},{"$f":"Marks!$K$6","v":10},{"$f":"VLOOKUP(F8, Marks!$B$3:$AI$22,10,0)","v":3},null,null,"Average"]
[{"$f":"[1]Marks!$L$5","v":"تحليل نص"},{"$f":"Marks!$L$6","v":10},{"$f":"VLOOKUP(F8, Marks!$B$3:$AI$22,11,0)","v":4},null,null,null,null,null,null,"شكراً لك أخي الكريم وبارك الله فيك."]
[{"$f":"[1]Marks!$M$5","v":"تعبير كتابي"},{"$f":"Marks!$M$6","v":10},{"$f":"VLOOKUP(F8, Marks!$B$3:$AI$22,12,0)","v":2}]
[{"$f":"[1]Marks!$N$5","v":"خط ونسخ"},{"$f":"Marks!$N$6","v":10},{"$f":"VLOOKUP(F8, Marks!$B$3:$AI$22,13,0)","v":8},null,null,{"$f":"SUM(B44/2)","v":210}]
[{"$f":"[1]Marks!$O$5","v":"تربية مدنية"},{"$f":"Marks!$O$6","v":20},{"$f":"VLOOKUP(F8, Marks!$B$3:$AI$22,14,0)","v":18}]
[{"$f":"[1]Marks!$P$5","v":"جغرافيا"},{"$f":"Marks!$P$6","v":20},{"$f":"VLOOKUP(F8, Marks!$B$3:$AI$22,15,0)","v":15},null,null,null,null,null,null,"الصفحة الرئيسية هي Sheet Marks"]
[{"$f":"[1]Marks!$Q$5","v":"تاريخ "},{"$f":"Marks!$Q$6","v":20},{"$f":"VLOOKUP(F8, Marks!$B$3:$AI$22,16,0)","v":18},null,null,"Total Marks"]
[{"$f":"[1]Marks!$R$5","v":"Reading"},{"$f":"Marks!$R$6","v":10},{"$f":"VLOOKUP(F8, Marks!$B$3:$AI$22,17,0)","v":2}]
[{"$f":"[1]Marks!$S$5","v":"Oral Com"},{"$f":"Marks!$S$6","v":10},{"$f":"VLOOKUP(F8, Marks!$B$3:$AI$22,18,0)","v":2},null,null,{"$f":"VLOOKUP(F8,Marks!$B$7:AI8,33,0)","v":243}]
[{"$f":"[1]Marks!$T$5","v":"Listening"},{"$f":"Marks!$T$6","v":10},{"$f":"VLOOKUP(F8, Marks!$B$3:$AI$22,19,0)","v":2}]
[{"$f":"[1]Marks!$U$5","v":"Poem"},{"$f":"Marks!$U$6","v":10},{"$f":"VLOOKUP(F8, Marks!$B$3:$AI$22,20,0)","v":4}]
[{"$f":"[1]Marks!$V$5","v":"Dictation"},{"$f":"Marks!$W$6","v":10},{"$f":"VLOOKUP(F8, Marks!$B$3:$AI$22,21,0)","v":2}]
[{"$f":"[1]Marks!$W$5","v":"Grammar"},{"$f":"Marks!$X$6","v":10},{"$f":"VLOOKUP(F8, Marks!$B$3:$AI$22,22,0)","v":4},null,null,"Rank"]
[{"$f":"[1]Marks!$X$5","v":"Read Com"},{"$f":"Marks!$Y$6","v":10},{"$f":"VLOOKUP(F8, Marks!$B$3:$AI$22,23,0)","v":4}]
[{"$f":"[1]Marks!$Y$5","v":"Writing"},{"$f":"Marks!$Z$6","v":10},{"$f":"VLOOKUP(F8, Marks!$B$3:$AI$22,24,0)","v":6}]
[{"$f":"[1]Marks!$Z$5","v":"Penmanship"},{"$f":"Marks!$AA$6","v":60},{"$f":"VLOOKUP(F8, Marks!$B$3:$AI$22,25,0)","v":9},null,null,{"$f":"VLOOKUP(F8,Marks!$B$3:$AI$22,34,0)","v":7}]
[{"$f":"[1]Marks!$AA$5","v":"Maths"},{"$f":"Marks!$AB$6","v":30},{"$f":"VLOOKUP(F8, Marks!$B$3:$AI$22,26,0)","v":38}]
[{"$f":"[1]Marks!$AB$5","v":"Biology"},{"$f":"Marks!$AC$6","v":30},{"$f":"VLOOKUP(F8, Marks!$B$3:$AI$22,27,0)","v":18}]
[{"$f":"[1]Marks!$AC$5","v":"Chemistry"},{"$f":"Marks!$AD$6","v":30},{"$f":"VLOOKUP(F8, Marks!$B$3:$AI$22,28,0)","v":18}]
[{"$f":"[1]Marks!$AD$5","v":"Physics"},{"$f":"Marks!$AE$6","v":10},{"$f":"VLOOKUP(F8, Marks!$B$3:$AI$22,29,0)","v":18},null,null,"Result"]
[{"$f":"[1]Marks!$AE$5","v":"Sports"},{"$f":"Marks!$AF$6","v":10},{"$f":"VLOOKUP(F8, Marks!$B$3:$AI$22,30,0)","v":11}]
[{"$f":"[1]Marks!$AF$5","v":"Arts"},{"$f":"Marks!$AG$6","v":10},{"$f":"VLOOKUP(F8, Marks!$B$3:$AI$22,31,0)","v":9}]
[{"$f":"[1]Marks!$AG$5","v":"Skills"},{"$f":"Marks!$AH$6","v":420},{"$f":"VLOOKUP(F8, Marks!$B$3:$AI$22,32,0)","v":5},null,null,{"$f":"_xlfn.IFS(F26>F21,\"ناجح\",F26<F21,\"راسب\",F26=F21,\"ناجح\")","v":"ناجح"}]
[]
[]
[]
["TOTAL ",{"$f":"Marks!$AH$6","v":420},{"$f":"VLOOKUP(F8,Marks!$B$3:AH8,33,0)","v":243}]
[]
["PRINCIPAL COMMENT ",null,null,null,null,"PARENTS SIGNATURE"]
[]
[]
[]
[]
[]
[]
[]
["GRATE REPPORT ",null,null,null,null,"DATE :","2021-11-12"]
[]
["NAME ",null,{"$f":"VLOOKUP(F56,Marks!$B$3:$AI$22,2,0)","v":"Ahmad Mohammed Yuness"},null,null,221,"ID No."]
["Class",null,{"$f":"VLOOKUP(F56,Marks!$B$3:$AI$22,3,0)","v":"Grade 2"},null,null,{"$f":"Marks!$A$1","v":"2020-2021"},"Year"]
["Section",null,{"$f":"VLOOKUP(F56,[1]Marks!$B$3:$AI$22,4,0)","v":"A"},null,null,{"$f":"Marks!$N$1","v":"First "},"Semester"]
[]
["Subjets","Maximum Mark","Chapter Mark","Remarks",null,"Absence"]
[{"$f":"[1]Marks!$F$5","v":"قراءة"},{"$f":"Marks!$F$6","v":10},{"$f":"VLOOKUP(F56,Marks!$B$3:$AI$22,5,0)","v":2}]
[{"$f":"[1]Marks!$G$5","v":"تعبير شفهي"},{"$f":"Marks!$G$6","v":10},{"$f":"VLOOKUP(F56,Marks!$B$3:$AI$22,6,0)","v":3}]
[{"$f":"[1]Marks!$H$5","v":"إصغاء"},{"$f":"Marks!$H$6","v":10},{"$f":"VLOOKUP(F56, Marks!$B$3:$AI$22,7,0)","v":4}]
[{"$f":"[1]Marks!$I$5","v":"إستظهار"},{"$f":"Marks!$I$6","v":10},{"$f":"VLOOKUP(F56, Marks!$B$3:$AI$22,8,0)","v":5}]
[{"$f":"[1]Marks!$J$5","v":"إملاء"},{"$f":"Marks!$J$6","v":10},{"$f":"VLOOKUP(F56, Marks!$B$3:$AI$22,9,0)","v":6}]
[{"$f":"[1]Marks!$K$5","v":"قواعد"},{"$f":"Marks!$K$6","v":10},{"$f":"VLOOKUP(F56, Marks!$B$3:$AI$22,10,0)","v":7},null,null,"Average"]
[{"$f":"[1]Marks!$L$5","v":"تحليل نص"},{"$f":"Marks!$L$6","v":10},{"$f":"VLOOKUP(F56, Marks!$B$3:$AI$22,11,0)","v":8}]
[{"$f":"[1]Marks!$M$5","v":"تعبير كتابي"},{"$f":"Marks!$M$6","v":10},{"$f":"VLOOKUP(F56, Marks!$B$3:$AI$22,12,0)","v":9}]
[{"$f":"[1]Marks!$N$5","v":"خط ونسخ"},{"$f":"Marks!$N$6","v":10},{"$f":"VLOOKUP(F56, Marks!$B$3:$AI$22,13,0)","v":10},null,null,{"$f":"SUM(B92/2)","v":210}]
[{"$f":"[1]Marks!$O$5","v":"تربية مدنية"},{"$f":"Marks!$O$6","v":20},{"$f":"VLOOKUP(F56, Marks!$B$3:$AI$22,14,0)","v":11}]
[{"$f":"[1]Marks!$P$5","v":"جغرافيا"},{"$f":"Marks!$P$6","v":20},{"$f":"VLOOKUP(F56, Marks!$B$3:$AI$22,15,0)","v":12}]
[{"$f":"[1]Marks!$Q$5","v":"تاريخ "},{"$f":"Marks!$Q$6","v":20},{"$f":"VLOOKUP(F56, Marks!$B$3:$AI$22,16,0)","v":13},null,null,"Total Marks"]
[{"$f":"[1]Marks!$R$5","v":"Reading"},{"$f":"Marks!$R$6","v":10},{"$f":"VLOOKUP(F56, Marks!$B$3:$AI$22,17,0)","v":14}]
[{"$f":"[1]Marks!$S$5","v":"Oral Com"},{"$f":"Marks!$S$6","v":10},{"$f":"VLOOKUP(F56, Marks!$B$3:$AI$22,18,0)","v":15},null,null,{"$f":"VLOOKUP(F56,Marks!$B$7:AI56,33,0)","v":434}]
[{"$f":"[1]Marks!$T$5","v":"Listening"},{"$f":"Marks!$T$6","v":10},{"$f":"VLOOKUP(F56, Marks!$B$3:$AI$22,19,0)","v":16}]
[{"$f":"[1]Marks!$U$5","v":"Poem"},{"$f":"Marks!$U$6","v":10},{"$f":"VLOOKUP(F56, Marks!$B$3:$AI$22,20,0)","v":17}]
[{"$f":"[1]Marks!$V$5","v":"Dictation"},{"$f":"Marks!$W$6","v":10},{"$f":"VLOOKUP(F56, Marks!$B$3:$AI$22,21,0)","v":18}]
[{"$f":"[1]Marks!$W$5","v":"Grammar"},{"$f":"Marks!$X$6","v":10},{"$f":"VLOOKUP(F56, Marks!$B$3:$AI$22,22,0)","v":19},null,null,"Rank"]
[{"$f":"[1]Marks!$X$5","v":"Read Com"},{"$f":"Marks!$Y$6","v":10},{"$f":"VLOOKUP(F56, Marks!$B$3:$AI$22,23,0)","v":20}]
[{"$f":"[1]Marks!$Y$5","v":"Writing"},{"$f":"Marks!$Z$6","v":10},{"$f":"VLOOKUP(F56, Marks!$B$3:$AI$22,24,0)","v":21}]
[{"$f":"[1]Marks!$Z$5","v":"Penmanship"},{"$f":"Marks!$AA$6","v":60},{"$f":"VLOOKUP(F56, Marks!$B$3:$AI$22,25,0)","v":22},null,null,{"$f":"VLOOKUP(F56,Marks!$B$3:$AI$22,34,0)","v":1}]
[{"$f":"[1]Marks!$AA$5","v":"Maths"},{"$f":"Marks!$AB$6","v":30},{"$f":"VLOOKUP(F56, Marks!$B$3:$AI$22,26,0)","v":23}]
[{"$f":"[1]Marks!$AB$5","v":"Biology"},{"$f":"Marks!$AC$6","v":30},{"$f":"VLOOKUP(F56, Marks!$B$3:$AI$22,27,0)","v":24}]
[{"$f":"[1]Marks!$AC$5","v":"Chemistry"},{"$f":"Marks!$AD$6","v":30},{"$f":"VLOOKUP(F56, Marks!$B$3:$AI$22,28,0)","v":25}]
[{"$f":"[1]Marks!$AD$5","v":"Physics"},{"$f":"Marks!$AE$6","v":10},{"$f":"VLOOKUP(F56, Marks!$B$3:$AI$22,29,0)","v":26},null,null,"Result"]
[{"$f":"[1]Marks!$AE$5","v":"Sports"},{"$f":"Marks!$AF$6","v":10},{"$f":"VLOOKUP(F56, Marks!$B$3:$AI$22,30,0)","v":27}]
[{"$f":"[1]Marks!$AF$5","v":"Arts"},{"$f":"Marks!$AG$6","v":10},{"$f":"VLOOKUP(F56, Marks!$B$3:$AI$22,31,0)","v":28}]
[{"$f":"[1]Marks!$AG$5","v":"Skills"},{"$f":"Marks!$AH$6","v":420},{"$f":"VLOOKUP(F56, Marks!$B$3:$AI$22,32,0)","v":29},null,null,{"$f":"_xlfn.IFS(F74>F69,\"ناجح\",F74<F69,\"راسب\",F74=F69,\"ناجح\")","v":"ناجح"}]
[]
[]
[]
["TOTAL ",{"$f":"Marks!$AH$6","v":420},{"$f":"VLOOKUP(F56,Marks!$B$3:AH56,33,0)","v":434}]
[]
["PRINCIPAL COMMENT ",null,null,null,null,"PARENTS SIGNATURE"]
[]
[]
[]
[]
[]
[]
[]
["GRATE REPPORT ",null,null,null,null,"DATE :","2021-11-13"]
[]
["NAME ",null,{"$f":"VLOOKUP(F104,Marks!$B$3:$AI$22,2,0)","v":"Zouheir hasan Wazni"},null,null,222,"ID No."]
["Class",null,{"$f":"VLOOKUP(F104,Marks!$B$3:$AI$22,3,0)","v":"Grade 3"},null,null,{"$f":"Marks!$A$1","v":"2020-2021"},"Year"]
["Section",null,{"$f":"VLOOKUP(F104,[1]Marks!$B$3:$AI$22,4,0)","v":"B"},null,null,{"$f":"Marks!$N$1","v":"First "},"Semester"]
[]
["Subjets","Maximum Mark","Chapter Mark","Remarks",null,"Absence"]
[{"$f":"[1]Marks!$F$5","v":"قراءة"},{"$f":"Marks!$F$6","v":10},{"$f":"VLOOKUP(F104,Marks!$B$3:$AI$22,5,0)","v":2}]
[{"$f":"[1]Marks!$G$5","v":"تعبير شفهي"},{"$f":"Marks!$G$6","v":10},{"$f":"VLOOKUP(F104,Marks!$B$3:$AI$22,6,0)","v":2}]
[{"$f":"[1]Marks!$H$5","v":"إصغاء"},{"$f":"Marks!$H$6","v":10},{"$f":"VLOOKUP(F104, Marks!$B$3:$AI$22,7,0)","v":2}]
[{"$f":"[1]Marks!$I$5","v":"إستظهار"},{"$f":"Marks!$I$6","v":10},{"$f":"VLOOKUP(F104, Marks!$B$3:$AI$22,8,0)","v":5}]
[{"$f":"[1]Marks!$J$5","v":"إملاء"},{"$f":"Marks!$J$6","v":10},{"$f":"VLOOKUP(F104, Marks!$B$3:$AI$22,9,0)","v":3}]
[{"$f":"[1]Marks!$K$5","v":"قواعد"},{"$f":"Marks!$K$6","v":10},{"$f":"VLOOKUP(F104, Marks!$B$3:$AI$22,10,0)","v":4},null,null,"Average"]
[{"$f":"[1]Marks!$L$5","v":"تحليل نص"},{"$f":"Marks!$L$6","v":10},{"$f":"VLOOKUP(F104, Marks!$B$3:$AI$22,11,0)","v":4}]
[{"$f":"[1]Marks!$M$5","v":"تعبير كتابي"},{"$f":"Marks!$M$6","v":10},{"$f":"VLOOKUP(F104, Marks!$B$3:$AI$22,12,0)","v":2}]
[{"$f":"[1]Marks!$N$5","v":"خط ونسخ"},{"$f":"Marks!$N$6","v":10},{"$f":"VLOOKUP(F104, Marks!$B$3:$AI$22,13,0)","v":9},null,null,{"$f":"SUM(B140/2)","v":210}]
[{"$f":"[1]Marks!$O$5","v":"تربية مدنية"},{"$f":"Marks!$O$6","v":20},{"$f":"VLOOKUP(F104, Marks!$B$3:$AI$22,14,0)","v":18}]
[{"$f":"[1]Marks!$P$5","v":"جغرافيا"},{"$f":"Marks!$P$6","v":20},{"$f":"VLOOKUP(F104, Marks!$B$3:$AI$22,15,0)","v":15}]
[{"$f":"[1]Marks!$Q$5","v":"تاريخ "},{"$f":"Marks!$Q$6","v":20},{"$f":"VLOOKUP(F104, Marks!$B$3:$AI$22,16,0)","v":15},null,null,"Total Marks"]
[{"$f":"[1]Marks!$R$5","v":"Reading"},{"$f":"Marks!$R$6","v":10},{"$f":"VLOOKUP(F104, Marks!$B$3:$AI$22,17,0)","v":2}]
[{"$f":"[1]Marks!$S$5","v":"Oral Com"},{"$f":"Marks!$S$6","v":10},{"$f":"VLOOKUP(F104, Marks!$B$3:$AI$22,18,0)","v":2},null,null,{"$f":"VLOOKUP(F104,Marks!$B$7:AI104,33,0)","v":246}]
[{"$f":"[1]Marks!$T$5","v":"Listening"},{"$f":"Marks!$T$6","v":10},{"$f":"VLOOKUP(F104, Marks!$B$3:$AI$22,19,0)","v":2}]
[{"$f":"[1]Marks!$U$5","v":"Poem"},{"$f":"Marks!$U$6","v":10},{"$f":"VLOOKUP(F104, Marks!$B$3:$AI$22,20,0)","v":5}]
[{"$f":"[1]Marks!$V$5","v":"Dictation"},{"$f":"Marks!$W$6","v":10},{"$f":"VLOOKUP(F104, Marks!$B$3:$AI$22,21,0)","v":2}]
[{"$f":"[1]Marks!$W$5","v":"Grammar"},{"$f":"Marks!$X$6","v":10},{"$f":"VLOOKUP(F104, Marks!$B$3:$AI$22,22,0)","v":5},null,null,"Rank"]
[{"$f":"[1]Marks!$X$5","v":"Read Com"},{"$f":"Marks!$Y$6","v":10},{"$f":"VLOOKUP(F104, Marks!$B$3:$AI$22,23,0)","v":5}]
[{"$f":"[1]Marks!$Y$5","v":"Writing"},{"$f":"Marks!$Z$6","v":10},{"$f":"VLOOKUP(F104, Marks!$B$3:$AI$22,24,0)","v":7}]
[{"$f":"[1]Marks!$Z$5","v":"Penmanship"},{"$f":"Marks!$AA$6","v":60},{"$f":"VLOOKUP(F104, Marks!$B$3:$AI$22,25,0)","v":9},null,null,{"$f":"VLOOKUP(F104,Marks!$B$3:$AI$22,34,0)","v":3}]
[{"$f":"[1]Marks!$AA$5","v":"Maths"},{"$f":"Marks!$AB$6","v":30},{"$f":"VLOOKUP(F104, Marks!$B$3:$AI$22,26,0)","v":35}]
[{"$f":"[1]Marks!$AB$5","v":"Biology"},{"$f":"Marks!$AC$6","v":30},{"$f":"VLOOKUP(F104, Marks!$B$3:$AI$22,27,0)","v":17}]
[{"$f":"[1]Marks!$AC$5","v":"Chemistry"},{"$f":"Marks!$AD$6","v":30},{"$f":"VLOOKUP(F104, Marks!$B$3:$AI$22,28,0)","v":20}]
[{"$f":"[1]Marks!$AD$5","v":"Physics"},{"$f":"Marks!$AE$6","v":10},{"$f":"VLOOKUP(F104, Marks!$B$3:$AI$22,29,0)","v":20},null,null,"Result"]
[{"$f":"[1]Marks!$AE$5","v":"Sports"},{"$f":"Marks!$AF$6","v":10},{"$f":"VLOOKUP(F104, Marks!$B$3:$AI$22,30,0)","v":16}]
[{"$f":"[1]Marks!$AF$5","v":"Arts"},{"$f":"Marks!$AG$6","v":10},{"$f":"VLOOKUP(F104, Marks!$B$3:$AI$22,31,0)","v":9}]
[{"$f":"[1]Marks!$AG$5","v":"Skills"},{"$f":"Marks!$AH$6","v":420},{"$f":"VLOOKUP(F104, Marks!$B$3:$AI$22,32,0)","v":9},null,null,{"$f":"_xlfn.IFS(F122>F117,\"ناجح\",F122<F117,\"راسب\",F122=F117,\"ناجح\")","v":"ناجح"}]
[]
[]
[]
["TOTAL ",{"$f":"Marks!$AH$6","v":420},{"$f":"VLOOKUP(F104,Marks!$B$3:AH104,33,0)","v":246}]
[]
["PRINCIPAL COMMENT ",null,null,null,null,"PARENTS SIGNATURE"]
[]
[]
[]
[]
[]
[]
[]
["GRATE REPPORT ",null,null,null,null,"DATE :","2021-11-14"]
[]
["NAME ",null,{"$f":"VLOOKUP(F152,Marks!$B$3:$AI$22,2,0)","v":"Sara Ali Ballot"},null,null,223,"ID No."]
["Class",null,{"$f":"VLOOKUP(F152,Marks!$B$3:$AI$22,3,0)","v":"Grade 4"},null,null,{"$f":"Marks!$A$1","v":"2020-2021"},"Year"]
["Section",null,{"$f":"VLOOKUP(F152,[1]Marks!$B$3:$AI$22,4,0)","v":"C"},null,null,{"$f":"Marks!$N$1","v":"First "},"Semester"]
[]
["Subjets","Maximum Mark","Chapter Mark","Remarks",null,"Absence"]
[{"$f":"[1]Marks!$F$5","v":"قراءة"},{"$f":"Marks!$F$6","v":10},{"$f":"VLOOKUP(F152,Marks!$B$3:$AI$22,5,0)","v":2}]
[{"$f":"[1]Marks!$G$5","v":"تعبير شفهي"},{"$f":"Marks!$G$6","v":10},{"$f":"VLOOKUP(F152,Marks!$B$3:$AI$22,6,0)","v":2}]
[{"$f":"[1]Marks!$H$5","v":"إصغاء"},{"$f":"Marks!$H$6","v":10},{"$f":"VLOOKUP(F152, Marks!$B$3:$AI$22,7,0)","v":2}]
[{"$f":"[1]Marks!$I$5","v":"إستظهار"},{"$f":"Marks!$I$6","v":10},{"$f":"VLOOKUP(F152, Marks!$B$3:$AI$22,8,0)","v":5}]
[{"$f":"[1]Marks!$J$5","v":"إملاء"},{"$f":"Marks!$J$6","v":10},{"$f":"VLOOKUP(F152, Marks!$B$3:$AI$22,9,0)","v":2}]
[{"$f":"[1]Marks!$K$5","v":"قواعد"},{"$f":"Marks!$K$6","v":10},{"$f":"VLOOKUP(F152, Marks!$B$3:$AI$22,10,0)","v":4},null,null,"Average"]
[{"$f":"[1]Marks!$L$5","v":"تحليل نص"},{"$f":"Marks!$L$6","v":10},{"$f":"VLOOKUP(F152, Marks!$B$3:$AI$22,11,0)","v":4}]
[{"$f":"[1]Marks!$M$5","v":"تعبير كتابي"},{"$f":"Marks!$M$6","v":10},{"$f":"VLOOKUP(F152, Marks!$B$3:$AI$22,12,0)","v":2}]
[{"$f":"[1]Marks!$N$5","v":"خط ونسخ"},{"$f":"Marks!$N$6","v":10},{"$f":"VLOOKUP(F152, Marks!$B$3:$AI$22,13,0)","v":9},null,null,{"$f":"SUM(B188/2)","v":210}]
[{"$f":"[1]Marks!$O$5","v":"تربية مدنية"},{"$f":"Marks!$O$6","v":20},{"$f":"VLOOKUP(F152, Marks!$B$3:$AI$22,14,0)","v":15}]
[{"$f":"[1]Marks!$P$5","v":"جغرافيا"},{"$f":"Marks!$P$6","v":20},{"$f":"VLOOKUP(F152, Marks!$B$3:$AI$22,15,0)","v":14}]
[{"$f":"[1]Marks!$Q$5","v":"تاريخ "},{"$f":"Marks!$Q$6","v":20},{"$f":"VLOOKUP(F152, Marks!$B$3:$AI$22,16,0)","v":15},null,null,"Total Marks"]
[{"$f":"[1]Marks!$R$5","v":"Reading"},{"$f":"Marks!$R$6","v":10},{"$f":"VLOOKUP(F152, Marks!$B$3:$AI$22,17,0)","v":2}]
[{"$f":"[1]Marks!$S$5","v":"Oral Com"},{"$f":"Marks!$S$6","v":10},{"$f":"VLOOKUP(F152, Marks!$B$3:$AI$22,18,0)","v":2},null,null,{"$f":"VLOOKUP(F152,Marks!$B$7:AI152,33,0)","v":230}]
[{"$f":"[1]Marks!$T$5","v":"Listening"},{"$f":"Marks!$T$6","v":10},{"$f":"VLOOKUP(F152, Marks!$B$3:$AI$22,19,0)","v":2}]
[{"$f":"[1]Marks!$U$5","v":"Poem"},{"$f":"Marks!$U$6","v":10},{"$f":"VLOOKUP(F152, Marks!$B$3:$AI$22,20,0)","v":5}]
[{"$f":"[1]Marks!$V$5","v":"Dictation"},{"$f":"Marks!$W$6","v":10},{"$f":"VLOOKUP(F152, Marks!$B$3:$AI$22,21,0)","v":2}]
[{"$f":"[1]Marks!$W$5","v":"Grammar"},{"$f":"Marks!$X$6","v":10},{"$f":"VLOOKUP(F152, Marks!$B$3:$AI$22,22,0)","v":4},null,null,"Rank"]
[{"$f":"[1]Marks!$X$5","v":"Read Com"},{"$f":"Marks!$Y$6","v":10},{"$f":"VLOOKUP(F152, Marks!$B$3:$AI$22,23,0)","v":4}]
[{"$f":"[1]Marks!$Y$5","v":"Writing"},{"$f":"Marks!$Z$6","v":10},{"$f":"VLOOKUP(F152, Marks!$B$3:$AI$22,24,0)","v":2}]
[{"$f":"[1]Marks!$Z$5","v":"Penmanship"},{"$f":"Marks!$AA$6","v":60},{"$f":"VLOOKUP(F152, Marks!$B$3:$AI$22,25,0)","v":8},null,null,{"$f":"VLOOKUP(F152,Marks!$B$3:$AI$22,34,0)","v":14}]
[{"$f":"[1]Marks!$AA$5","v":"Maths"},{"$f":"Marks!$AB$6","v":30},{"$f":"VLOOKUP(F152, Marks!$B$3:$AI$22,26,0)","v":36}]
[{"$f":"[1]Marks!$AB$5","v":"Biology"},{"$f":"Marks!$AC$6","v":30},{"$f":"VLOOKUP(F152, Marks!$B$3:$AI$22,27,0)","v":19}]
[{"$f":"[1]Marks!$AC$5","v":"Chemistry"},{"$f":"Marks!$AD$6","v":30},{"$f":"VLOOKUP(F152, Marks!$B$3:$AI$22,28,0)","v":15}]
[{"$f":"[1]Marks!$AD$5","v":"Physics"},{"$f":"Marks!$AE$6","v":10},{"$f":"VLOOKUP(F152, Marks!$B$3:$AI$22,29,0)","v":19},null,null,"Result"]
[{"$f":"[1]Marks!$AE$5","v":"Sports"},{"$f":"Marks!$AF$6","v":10},{"$f":"VLOOKUP(F152, Marks!$B$3:$AI$22,30,0)","v":18}]
[{"$f":"[1]Marks!$AF$5","v":"Arts"},{"$f":"Marks!$AG$6","v":10},{"$f":"VLOOKUP(F152, Marks!$B$3:$AI$22,31,0)","v":7}]
[{"$f":"[1]Marks!$AG$5","v":"Skills"},{"$f":"Marks!$AH$6","v":420},{"$f":"VLOOKUP(F152, Marks!$B$3:$AI$22,32,0)","v":9},null,null,{"$f":"_xlfn.IFS(F170>F165,\"ناجح\",F170<F165,\"راسب\",F170=F165,\"ناجح\")","v":"ناجح"}]
[]
[]
[]
["TOTAL ",{"$f":"Marks!$AH$6","v":420},{"$f":"VLOOKUP(F152,Marks!$B$3:AH152,33,0)","v":230}]
[]
["PRINCIPAL COMMENT ",null,null,null,null,"PARENTS SIGNATURE"]
[]
[]
[]
[]
[]
[]
[]
["GRATE REPPORT ",null,null,null,null,"DATE :","2021-11-15"]
[]
["NAME ",null,{"$f":"VLOOKUP(F200,Marks!$B$3:$AI$22,2,0)","v":"Saad eddin Syufi"},null,null,224,"ID No."]
["Class",null,{"$f":"VLOOKUP(F200,Marks!$B$3:$AI$22,3,0)","v":"Grade 5"},null,null,{"$f":"Marks!$A$1","v":"2020-2021"},"Year"]
["Section",null,{"$f":"VLOOKUP(F200,[1]Marks!$B$3:$AI$22,4,0)","v":"D"},null,null,{"$f":"Marks!$N$1","v":"First "},"Semester"]
[]
["Subjets","Maximum Mark","Chapter Mark","Remarks",null,"Absence"]
[{"$f":"[1]Marks!$F$5","v":"قراءة"},{"$f":"Marks!$F$6","v":10},{"$f":"VLOOKUP(F200,Marks!$B$3:$AI$22,5,0)","v":2}]
[{"$f":"[1]Marks!$G$5","v":"تعبير شفهي"},{"$f":"Marks!$G$6","v":10},{"$f":"VLOOKUP(F200,Marks!$B$3:$AI$22,6,0)","v":2}]
[{"$f":"[1]Marks!$H$5","v":"إصغاء"},{"$f":"Marks!$H$6","v":10},{"$f":"VLOOKUP(F200, Marks!$B$3:$AI$22,7,0)","v":2}]
[{"$f":"[1]Marks!$I$5","v":"إستظهار"},{"$f":"Marks!$I$6","v":10},{"$f":"VLOOKUP(F200, Marks!$B$3:$AI$22,8,0)","v":5}]
[{"$f":"[1]Marks!$J$5","v":"إملاء"},{"$f":"Marks!$J$6","v":10},{"$f":"VLOOKUP(F200, Marks!$B$3:$AI$22,9,0)","v":2}]
[{"$f":"[1]Marks!$K$5","v":"قواعد"},{"$f":"Marks!$K$6","v":10},{"$f":"VLOOKUP(F200, Marks!$B$3:$AI$22,10,0)","v":4},null,null,"Average"]
[{"$f":"[1]Marks!$L$5","v":"تحليل نص"},{"$f":"Marks!$L$6","v":10},{"$f":"VLOOKUP(F200, Marks!$B$3:$AI$22,11,0)","v":4}]
[{"$f":"[1]Marks!$M$5","v":"تعبير كتابي"},{"$f":"Marks!$M$6","v":10},{"$f":"VLOOKUP(F200, Marks!$B$3:$AI$22,12,0)","v":4}]
[{"$f":"[1]Marks!$N$5","v":"خط ونسخ"},{"$f":"Marks!$N$6","v":10},{"$f":"VLOOKUP(F200, Marks!$B$3:$AI$22,13,0)","v":9},null,null,{"$f":"SUM(B236/2)","v":210}]
[{"$f":"[1]Marks!$O$5","v":"تربية مدنية"},{"$f":"Marks!$O$6","v":20},{"$f":"VLOOKUP(F200, Marks!$B$3:$AI$22,14,0)","v":15}]
[{"$f":"[1]Marks!$P$5","v":"جغرافيا"},{"$f":"Marks!$P$6","v":20},{"$f":"VLOOKUP(F200, Marks!$B$3:$AI$22,15,0)","v":14}]
[{"$f":"[1]Marks!$Q$5","v":"تاريخ "},{"$f":"Marks!$Q$6","v":20},{"$f":"VLOOKUP(F200, Marks!$B$3:$AI$22,16,0)","v":14},null,null,"Total Marks"]
[{"$f":"[1]Marks!$R$5","v":"Reading"},{"$f":"Marks!$R$6","v":10},{"$f":"VLOOKUP(F200, Marks!$B$3:$AI$22,17,0)","v":2}]
[{"$f":"[1]Marks!$S$5","v":"Oral Com"},{"$f":"Marks!$S$6","v":10},{"$f":"VLOOKUP(F200, Marks!$B$3:$AI$22,18,0)","v":4},null,null,{"$f":"VLOOKUP(F200,Marks!$B$7:AI200,33,0)","v":228}]
[{"$f":"[1]Marks!$T$5","v":"Listening"},{"$f":"Marks!$T$6","v":10},{"$f":"VLOOKUP(F200, Marks!$B$3:$AI$22,19,0)","v":4}]
[{"$f":"[1]Marks!$U$5","v":"Poem"},{"$f":"Marks!$U$6","v":10},{"$f":"VLOOKUP(F200, Marks!$B$3:$AI$22,20,0)","v":5}]
[{"$f":"[1]Marks!$V$5","v":"Dictation"},{"$f":"Marks!$W$6","v":10},{"$f":"VLOOKUP(F200, Marks!$B$3:$AI$22,21,0)","v":2}]
[{"$f":"[1]Marks!$W$5","v":"Grammar"},{"$f":"Marks!$X$6","v":10},{"$f":"VLOOKUP(F200, Marks!$B$3:$AI$22,22,0)","v":4},null,null,"Rank"]
[{"$f":"[1]Marks!$X$5","v":"Read Com"},{"$f":"Marks!$Y$6","v":10},{"$f":"VLOOKUP(F200, Marks!$B$3:$AI$22,23,0)","v":4}]
[{"$f":"[1]Marks!$Y$5","v":"Writing"},{"$f":"Marks!$Z$6","v":10},{"$f":"VLOOKUP(F200, Marks!$B$3:$AI$22,24,0)","v":3}]
[{"$f":"[1]Marks!$Z$5","v":"Penmanship"},{"$f":"Marks!$AA$6","v":60},{"$f":"VLOOKUP(F200, Marks!$B$3:$AI$22,25,0)","v":7},null,null,{"$f":"VLOOKUP(F200,Marks!$B$3:$AI$22,34,0)","v":15}]
[{"$f":"[1]Marks!$AA$5","v":"Maths"},{"$f":"Marks!$AB$6","v":30},{"$f":"VLOOKUP(F200, Marks!$B$3:$AI$22,26,0)","v":30}]
[{"$f":"[1]Marks!$AB$5","v":"Biology"},{"$f":"Marks!$AC$6","v":30},{"$f":"VLOOKUP(F200, Marks!$B$3:$AI$22,27,0)","v":18}]
[{"$f":"[1]Marks!$AC$5","v":"Chemistry"},{"$f":"Marks!$AD$6","v":30},{"$f":"VLOOKUP(F200, Marks!$B$3:$AI$22,28,0)","v":18}]
[{"$f":"[1]Marks!$AD$5","v":"Physics"},{"$f":"Marks!$AE$6","v":10},{"$f":"VLOOKUP(F200, Marks!$B$3:$AI$22,29,0)","v":15},null,null,"Result"]
[{"$f":"[1]Marks!$AE$5","v":"Sports"},{"$f":"Marks!$AF$6","v":10},{"$f":"VLOOKUP(F200, Marks!$B$3:$AI$22,30,0)","v":19}]
[{"$f":"[1]Marks!$AF$5","v":"Arts"},{"$f":"Marks!$AG$6","v":10},{"$f":"VLOOKUP(F200, Marks!$B$3:$AI$22,31,0)","v":8}]
[{"$f":"[1]Marks!$AG$5","v":"Skills"},{"$f":"Marks!$AH$6","v":420},{"$f":"VLOOKUP(F200, Marks!$B$3:$AI$22,32,0)","v":8},null,null,{"$f":"_xlfn.IFS(F218>F213,\"ناجح\",F218<F213,\"راسب\",F218=F213,\"ناجح\")","v":"ناجح"}]
[]
[]
[]
["TOTAL ",{"$f":"Marks!$AH$6","v":420},{"$f":"VLOOKUP(F200,Marks!$B$3:AH200,33,0)","v":228}]
[]
["PRINCIPAL COMMENT ",null,null,null,null,"PARENTS SIGNATURE"]
[]
[]
[]
[]
[]
[]
[]
["GRATE REPPORT ",null,null,null,null,"DATE :","2021-11-16"]
[]
["NAME ",null,{"$f":"VLOOKUP(F248,Marks!$B$3:$AI$22,2,0)","v":"Ali  Mohammed Safar"},null,null,225,"ID No."]
["Class",null,{"$f":"VLOOKUP(F248,Marks!$B$3:$AI$22,3,0)","v":"Grade 8"},null,null,{"$f":"Marks!$A$1","v":"2020-2021"},"Year"]
["Section",null,{"$f":"VLOOKUP(F248,[1]Marks!$B$3:$AI$22,4,0)","v":"E"},null,null,{"$f":"Marks!$N$1","v":"First "},"Semester"]
[]
["Subjets","Maximum Mark","Chapter Mark","Remarks",null,"Absence"]
[{"$f":"[1]Marks!$F$5","v":"قراءة"},{"$f":"Marks!$F$6","v":10},{"$f":"VLOOKUP(F248,Marks!$B$3:$AI$22,5,0)","v":2}]
[{"$f":"[1]Marks!$G$5","v":"تعبير شفهي"},{"$f":"Marks!$G$6","v":10},{"$f":"VLOOKUP(F248,Marks!$B$3:$AI$22,6,0)","v":2}]
[{"$f":"[1]Marks!$H$5","v":"إصغاء"},{"$f":"Marks!$H$6","v":10},{"$f":"VLOOKUP(F248, Marks!$B$3:$AI$22,7,0)","v":3}]
[{"$f":"[1]Marks!$I$5","v":"إستظهار"},{"$f":"Marks!$I$6","v":10},{"$f":"VLOOKUP(F248, Marks!$B$3:$AI$22,8,0)","v":5}]
[{"$f":"[1]Marks!$J$5","v":"إملاء"},{"$f":"Marks!$J$6","v":10},{"$f":"VLOOKUP(F248, Marks!$B$3:$AI$22,9,0)","v":2}]
[{"$f":"[1]Marks!$K$5","v":"قواعد"},{"$f":"Marks!$K$6","v":10},{"$f":"VLOOKUP(F248, Marks!$B$3:$AI$22,10,0)","v":4},null,null,"Average"]
[{"$f":"[1]Marks!$L$5","v":"تحليل نص"},{"$f":"Marks!$L$6","v":10},{"$f":"VLOOKUP(F248, Marks!$B$3:$AI$22,11,0)","v":4}]
[{"$f":"[1]Marks!$M$5","v":"تعبير كتابي"},{"$f":"Marks!$M$6","v":10},{"$f":"VLOOKUP(F248, Marks!$B$3:$AI$22,12,0)","v":4}]
[{"$f":"[1]Marks!$N$5","v":"خط ونسخ"},{"$f":"Marks!$N$6","v":10},{"$f":"VLOOKUP(F248, Marks!$B$3:$AI$22,13,0)","v":8},null,null,{"$f":"SUM(B284/2)","v":210}]
[{"$f":"[1]Marks!$O$5","v":"تربية مدنية"},{"$f":"Marks!$O$6","v":20},{"$f":"VLOOKUP(F248, Marks!$B$3:$AI$22,14,0)","v":15}]
[{"$f":"[1]Marks!$P$5","v":"جغرافيا"},{"$f":"Marks!$P$6","v":20},{"$f":"VLOOKUP(F248, Marks!$B$3:$AI$22,15,0)","v":18}]
[{"$f":"[1]Marks!$Q$5","v":"تاريخ "},{"$f":"Marks!$Q$6","v":20},{"$f":"VLOOKUP(F248, Marks!$B$3:$AI$22,16,0)","v":16},null,null,"Total Marks"]
[{"$f":"[1]Marks!$R$5","v":"Reading"},{"$f":"Marks!$R$6","v":10},{"$f":"VLOOKUP(F248, Marks!$B$3:$AI$22,17,0)","v":2}]
[{"$f":"[1]Marks!$S$5","v":"Oral Com"},{"$f":"Marks!$S$6","v":10},{"$f":"VLOOKUP(F248, Marks!$B$3:$AI$22,18,0)","v":4},null,null,{"$f":"VLOOKUP(F248,Marks!$B$7:AI248,33,0)","v":237}]
[{"$f":"[1]Marks!$T$5","v":"Listening"},{"$f":"Marks!$T$6","v":10},{"$f":"VLOOKUP(F248, Marks!$B$3:$AI$22,19,0)","v":4}]
[{"$f":"[1]Marks!$U$5","v":"Poem"},{"$f":"Marks!$U$6","v":10},{"$f":"VLOOKUP(F248, Marks!$B$3:$AI$22,20,0)","v":5}]
[{"$f":"[1]Marks!$V$5","v":"Dictation"},{"$f":"Marks!$W$6","v":10},{"$f":"VLOOKUP(F248, Marks!$B$3:$AI$22,21,0)","v":2}]
[{"$f":"[1]Marks!$W$5","v":"Grammar"},{"$f":"Marks!$X$6","v":10},{"$f":"VLOOKUP(F248, Marks!$B$3:$AI$22,22,0)","v":4},null,null,"Rank"]
[{"$f":"[1]Marks!$X$5","v":"Read Com"},{"$f":"Marks!$Y$6","v":10},{"$f":"VLOOKUP(F248, Marks!$B$3:$AI$22,23,0)","v":4}]
[{"$f":"[1]Marks!$Y$5","v":"Writing"},{"$f":"Marks!$Z$6","v":10},{"$f":"VLOOKUP(F248, Marks!$B$3:$AI$22,24,0)","v":3}]
[{"$f":"[1]Marks!$Z$5","v":"Penmanship"},{"$f":"Marks!$AA$6","v":60},{"$f":"VLOOKUP(F248, Marks!$B$3:$AI$22,25,0)","v":9},null,null,{"$f":"VLOOKUP(F248,Marks!$B$3:$AI$22,34,0)","v":11}]
[{"$f":"[1]Marks!$AA$5","v":"Maths"},{"$f":"Marks!$AB$6","v":30},{"$f":"VLOOKUP(F248, Marks!$B$3:$AI$22,26,0)","v":32}]
[{"$f":"[1]Marks!$AB$5","v":"Biology"},{"$f":"Marks!$AC$6","v":30},{"$f":"VLOOKUP(F248, Marks!$B$3:$AI$22,27,0)","v":18}]
[{"$f":"[1]Marks!$AC$5","v":"Chemistry"},{"$f":"Marks!$AD$6","v":30},{"$f":"VLOOKUP(F248, Marks!$B$3:$AI$22,28,0)","v":15}]
[{"$f":"[1]Marks!$AD$5","v":"Physics"},{"$f":"Marks!$AE$6","v":10},{"$f":"VLOOKUP(F248, Marks!$B$3:$AI$22,29,0)","v":17},null,null,"Result"]
[{"$f":"[1]Marks!$AE$5","v":"Sports"},{"$f":"Marks!$AF$6","v":10},{"$f":"VLOOKUP(F248, Marks!$B$3:$AI$22,30,0)","v":20}]
[{"$f":"[1]Marks!$AF$5","v":"Arts"},{"$f":"Marks!$AG$6","v":10},{"$f":"VLOOKUP(F248, Marks!$B$3:$AI$22,31,0)","v":9}]
[{"$f":"[1]Marks!$AG$5","v":"Skills"},{"$f":"Marks!$AH$6","v":420},{"$f":"VLOOKUP(F248, Marks!$B$3:$AI$22,32,0)","v":6},null,null,{"$f":"_xlfn.IFS(F266>F261,\"ناجح\",F266<F261,\"راسب\",F266=F261,\"ناجح\")","v":"ناجح"}]
[]
[]
[]
["TOTAL ",{"$f":"Marks!$AH$6","v":420},{"$f":"VLOOKUP(F248,Marks!$B$3:AH248,33,0)","v":237}]
[]
["PRINCIPAL COMMENT ",null,null,null,null,"PARENTS SIGNATURE"]
[]
[]
[]
[]
[]
[]
[]
["GRATE REPPORT ",null,null,null,null,"DATE :","2021-11-17"]
[]
["NAME ",null,{"$f":"VLOOKUP(F296,Marks!$B$3:$AI$22,2,0)","v":"Ali Naser Slim"},null,null,226,"ID No."]
["Class",null,{"$f":"VLOOKUP(F296,Marks!$B$3:$AI$22,3,0)","v":"Grade 8"},null,null,{"$f":"Marks!$A$1","v":"2020-2021"},"Year"]
["Section",null,{"$f":"VLOOKUP(F296,[1]Marks!$B$3:$AI$22,4,0)","v":"F"},null,null,{"$f":"Marks!$N$1","v":"First "},"Semester"]
[]
["Subjets","Maximum Mark","Chapter Mark","Remarks",null,"Absence"]
[{"$f":"[1]Marks!$F$5","v":"قراءة"},{"$f":"Marks!$F$6","v":10},{"$f":"VLOOKUP(F296,Marks!$B$3:$AI$22,5,0)","v":2}]
[{"$f":"[1]Marks!$G$5","v":"تعبير شفهي"},{"$f":"Marks!$G$6","v":10},{"$f":"VLOOKUP(F296,Marks!$B$3:$AI$22,6,0)","v":2}]
[{"$f":"[1]Marks!$H$5","v":"إصغاء"},{"$f":"Marks!$H$6","v":10},{"$f":"VLOOKUP(F296, Marks!$B$3:$AI$22,7,0)","v":3}]
[{"$f":"[1]Marks!$I$5","v":"إستظهار"},{"$f":"Marks!$I$6","v":10},{"$f":"VLOOKUP(F296, Marks!$B$3:$AI$22,8,0)","v":5}]
[{"$f":"[1]Marks!$J$5","v":"إملاء"},{"$f":"Marks!$J$6","v":10},{"$f":"VLOOKUP(F296, Marks!$B$3:$AI$22,9,0)","v":2}]
[{"$f":"[1]Marks!$K$5","v":"قواعد"},{"$f":"Marks!$K$6","v":10},{"$f":"VLOOKUP(F296, Marks!$B$3:$AI$22,10,0)","v":4},null,null,"Average"]
[{"$f":"[1]Marks!$L$5","v":"تحليل نص"},{"$f":"Marks!$L$6","v":10},{"$f":"VLOOKUP(F296, Marks!$B$3:$AI$22,11,0)","v":4}]
[{"$f":"[1]Marks!$M$5","v":"تعبير كتابي"},{"$f":"Marks!$M$6","v":10},{"$f":"VLOOKUP(F296, Marks!$B$3:$AI$22,12,0)","v":2}]
[{"$f":"[1]Marks!$N$5","v":"خط ونسخ"},{"$f":"Marks!$N$6","v":10},{"$f":"VLOOKUP(F296, Marks!$B$3:$AI$22,13,0)","v":7},null,null,{"$f":"SUM(B332/2)","v":210}]
[{"$f":"[1]Marks!$O$5","v":"تربية مدنية"},{"$f":"Marks!$O$6","v":20},{"$f":"VLOOKUP(F296, Marks!$B$3:$AI$22,14,0)","v":14}]
[{"$f":"[1]Marks!$P$5","v":"جغرافيا"},{"$f":"Marks!$P$6","v":20},{"$f":"VLOOKUP(F296, Marks!$B$3:$AI$22,15,0)","v":19}]
[{"$f":"[1]Marks!$Q$5","v":"تاريخ "},{"$f":"Marks!$Q$6","v":20},{"$f":"VLOOKUP(F296, Marks!$B$3:$AI$22,16,0)","v":18},null,null,"Total Marks"]
[{"$f":"[1]Marks!$R$5","v":"Reading"},{"$f":"Marks!$R$6","v":10},{"$f":"VLOOKUP(F296, Marks!$B$3:$AI$22,17,0)","v":5}]
[{"$f":"[1]Marks!$S$5","v":"Oral Com"},{"$f":"Marks!$S$6","v":10},{"$f":"VLOOKUP(F296, Marks!$B$3:$AI$22,18,0)","v":2},null,null,{"$f":"VLOOKUP(F296,Marks!$B$7:AI296,33,0)","v":233}]
[{"$f":"[1]Marks!$T$5","v":"Listening"},{"$f":"Marks!$T$6","v":10},{"$f":"VLOOKUP(F296, Marks!$B$3:$AI$22,19,0)","v":2}]
[{"$f":"[1]Marks!$U$5","v":"Poem"},{"$f":"Marks!$U$6","v":10},{"$f":"VLOOKUP(F296, Marks!$B$3:$AI$22,20,0)","v":5}]
[{"$f":"[1]Marks!$V$5","v":"Dictation"},{"$f":"Marks!$W$6","v":10},{"$f":"VLOOKUP(F296, Marks!$B$3:$AI$22,21,0)","v":2}]
[{"$f":"[1]Marks!$W$5","v":"Grammar"},{"$f":"Marks!$X$6","v":10},{"$f":"VLOOKUP(F296, Marks!$B$3:$AI$22,22,0)","v":2},null,null,"Rank"]
[{"$f":"[1]Marks!$X$5","v":"Read Com"},{"$f":"Marks!$Y$6","v":10},{"$f":"VLOOKUP(F296, Marks!$B$3:$AI$22,23,0)","v":2}]
[{"$f":"[1]Marks!$Y$5","v":"Writing"},{"$f":"Marks!$Z$6","v":10},{"$f":"VLOOKUP(F296, Marks!$B$3:$AI$22,24,0)","v":5}]
[{"$f":"[1]Marks!$Z$5","v":"Penmanship"},{"$f":"Marks!$AA$6","v":60},{"$f":"VLOOKUP(F296, Marks!$B$3:$AI$22,25,0)","v":8},null,null,{"$f":"VLOOKUP(F296,Marks!$B$3:$AI$22,34,0)","v":13}]
[{"$f":"[1]Marks!$AA$5","v":"Maths"},{"$f":"Marks!$AB$6","v":30},{"$f":"VLOOKUP(F296, Marks!$B$3:$AI$22,26,0)","v":38}]
[{"$f":"[1]Marks!$AB$5","v":"Biology"},{"$f":"Marks!$AC$6","v":30},{"$f":"VLOOKUP(F296, Marks!$B$3:$AI$22,27,0)","v":19}]
[{"$f":"[1]Marks!$AC$5","v":"Chemistry"},{"$f":"Marks!$AD$6","v":30},{"$f":"VLOOKUP(F296, Marks!$B$3:$AI$22,28,0)","v":17}]
[{"$f":"[1]Marks!$AD$5","v":"Physics"},{"$f":"Marks!$AE$6","v":10},{"$f":"VLOOKUP(F296, Marks!$B$3:$AI$22,29,0)","v":19},null,null,"Result"]
[{"$f":"[1]Marks!$AE$5","v":"Sports"},{"$f":"Marks!$AF$6","v":10},{"$f":"VLOOKUP(F296, Marks!$B$3:$AI$22,30,0)","v":8}]
[{"$f":"[1]Marks!$AF$5","v":"Arts"},{"$f":"Marks!$AG$6","v":10},{"$f":"VLOOKUP(F296, Marks!$B$3:$AI$22,31,0)","v":9}]
[{"$f":"[1]Marks!$AG$5","v":"Skills"},{"$f":"Marks!$AH$6","v":420},{"$f":"VLOOKUP(F296, Marks!$B$3:$AI$22,32,0)","v":8},null,null,{"$f":"_xlfn.IFS(F314>F309,\"ناجح\",F314<F309,\"راسب\",F314=F309,\"ناجح\")","v":"ناجح"}]
[]
[]
[]
["TOTAL ",{"$f":"Marks!$AH$6","v":420},{"$f":"VLOOKUP(F296,Marks!$B$3:AH296,33,0)","v":233}]
[]
["PRINCIPAL COMMENT ",null,null,null,null,"PARENTS SIGNATURE"]
[]
[]
[]
[]
[]
[]
[]
["GRATE REPPORT ",null,null,null,null,"DATE :","2021-11-18"]
[]
["NAME ",null,{"$f":"VLOOKUP(F344,Marks!$B$3:$AI$22,2,0)","v":"Mohammed Ali Saad"},null,null,227,"ID No."]
["Class",null,{"$f":"VLOOKUP(F344,Marks!$B$3:$AI$22,3,0)","v":"Grade 7"},null,null,{"$f":"Marks!$A$1","v":"2020-2021"},"Year"]
["Section",null,{"$f":"VLOOKUP(F344,[1]Marks!$B$3:$AI$22,4,0)","v":"C"},null,null,{"$f":"Marks!$N$1","v":"First "},"Semester"]
[]
["Subjets","Maximum Mark","Chapter Mark","Remarks",null,"Absence"]
[{"$f":"[1]Marks!$F$5","v":"قراءة"},{"$f":"Marks!$F$6","v":10},{"$f":"VLOOKUP(F344,Marks!$B$3:$AI$22,5,0)","v":2}]
[{"$f":"[1]Marks!$G$5","v":"تعبير شفهي"},{"$f":"Marks!$G$6","v":10},{"$f":"VLOOKUP(F344,Marks!$B$3:$AI$22,6,0)","v":2}]
[{"$f":"[1]Marks!$H$5","v":"إصغاء"},{"$f":"Marks!$H$6","v":10},{"$f":"VLOOKUP(F344, Marks!$B$3:$AI$22,7,0)","v":2}]
[{"$f":"[1]Marks!$I$5","v":"إستظهار"},{"$f":"Marks!$I$6","v":10},{"$f":"VLOOKUP(F344, Marks!$B$3:$AI$22,8,0)","v":5}]
[{"$f":"[1]Marks!$J$5","v":"إملاء"},{"$f":"Marks!$J$6","v":10},{"$f":"VLOOKUP(F344, Marks!$B$3:$AI$22,9,0)","v":2}]
[{"$f":"[1]Marks!$K$5","v":"قواعد"},{"$f":"Marks!$K$6","v":10},{"$f":"VLOOKUP(F344, Marks!$B$3:$AI$22,10,0)","v":4},null,null,"Average"]
[{"$f":"[1]Marks!$L$5","v":"تحليل نص"},{"$f":"Marks!$L$6","v":10},{"$f":"VLOOKUP(F344, Marks!$B$3:$AI$22,11,0)","v":4}]
[{"$f":"[1]Marks!$M$5","v":"تعبير كتابي"},{"$f":"Marks!$M$6","v":10},{"$f":"VLOOKUP(F344, Marks!$B$3:$AI$22,12,0)","v":4}]
[{"$f":"[1]Marks!$N$5","v":"خط ونسخ"},{"$f":"Marks!$N$6","v":10},{"$f":"VLOOKUP(F344, Marks!$B$3:$AI$22,13,0)","v":7},null,null,{"$f":"SUM(B380/2)","v":210}]
[{"$f":"[1]Marks!$O$5","v":"تربية مدنية"},{"$f":"Marks!$O$6","v":20},{"$f":"VLOOKUP(F344, Marks!$B$3:$AI$22,14,0)","v":16}]
[{"$f":"[1]Marks!$P$5","v":"جغرافيا"},{"$f":"Marks!$P$6","v":20},{"$f":"VLOOKUP(F344, Marks!$B$3:$AI$22,15,0)","v":20}]
[{"$f":"[1]Marks!$Q$5","v":"تاريخ "},{"$f":"Marks!$Q$6","v":20},{"$f":"VLOOKUP(F344, Marks!$B$3:$AI$22,16,0)","v":19},null,null,"Total Marks"]
[{"$f":"[1]Marks!$R$5","v":"Reading"},{"$f":"Marks!$R$6","v":10},{"$f":"VLOOKUP(F344, Marks!$B$3:$AI$22,17,0)","v":2}]
[{"$f":"[1]Marks!$S$5","v":"Oral Com"},{"$f":"Marks!$S$6","v":10},{"$f":"VLOOKUP(F344, Marks!$B$3:$AI$22,18,0)","v":5},null,null,{"$f":"VLOOKUP(F344,Marks!$B$7:AI344,33,0)","v":253}]
[{"$f":"[1]Marks!$T$5","v":"Listening"},{"$f":"Marks!$T$6","v":10},{"$f":"VLOOKUP(F344, Marks!$B$3:$AI$22,19,0)","v":5}]
[{"$f":"[1]Marks!$U$5","v":"Poem"},{"$f":"Marks!$U$6","v":10},{"$f":"VLOOKUP(F344, Marks!$B$3:$AI$22,20,0)","v":5}]
[{"$f":"[1]Marks!$V$5","v":"Dictation"},{"$f":"Marks!$W$6","v":10},{"$f":"VLOOKUP(F344, Marks!$B$3:$AI$22,21,0)","v":2}]
[{"$f":"[1]Marks!$W$5","v":"Grammar"},{"$f":"Marks!$X$6","v":10},{"$f":"VLOOKUP(F344, Marks!$B$3:$AI$22,22,0)","v":5},null,null,"Rank"]
[{"$f":"[1]Marks!$X$5","v":"Read Com"},{"$f":"Marks!$Y$6","v":10},{"$f":"VLOOKUP(F344, Marks!$B$3:$AI$22,23,0)","v":5}]
[{"$f":"[1]Marks!$Y$5","v":"Writing"},{"$f":"Marks!$Z$6","v":10},{"$f":"VLOOKUP(F344, Marks!$B$3:$AI$22,24,0)","v":5}]
[{"$f":"[1]Marks!$Z$5","v":"Penmanship"},{"$f":"Marks!$AA$6","v":60},{"$f":"VLOOKUP(F344, Marks!$B$3:$AI$22,25,0)","v":9},null,null,{"$f":"VLOOKUP(F344,Marks!$B$3:$AI$22,34,0)","v":2}]
[{"$f":"[1]Marks!$AA$5","v":"Maths"},{"$f":"Marks!$AB$6","v":30},{"$f":"VLOOKUP(F344, Marks!$B$3:$AI$22,26,0)","v":39}]
[{"$f":"[1]Marks!$AB$5","v":"Biology"},{"$f":"Marks!$AC$6","v":30},{"$f":"VLOOKUP(F344, Marks!$B$3:$AI$22,27,0)","v":20}]
[{"$f":"[1]Marks!$AC$5","v":"Chemistry"},{"$f":"Marks!$AD$6","v":30},{"$f":"VLOOKUP(F344, Marks!$B$3:$AI$22,28,0)","v":16}]
[{"$f":"[1]Marks!$AD$5","v":"Physics"},{"$f":"Marks!$AE$6","v":10},{"$f":"VLOOKUP(F344, Marks!$B$3:$AI$22,29,0)","v":19},null,null,"Result"]
[{"$f":"[1]Marks!$AE$5","v":"Sports"},{"$f":"Marks!$AF$6","v":10},{"$f":"VLOOKUP(F344, Marks!$B$3:$AI$22,30,0)","v":15}]
[{"$f":"[1]Marks!$AF$5","v":"Arts"},{"$f":"Marks!$AG$6","v":10},{"$f":"VLOOKUP(F344, Marks!$B$3:$AI$22,31,0)","v":8}]
[{"$f":"[1]Marks!$AG$5","v":"Skills"},{"$f":"Marks!$AH$6","v":420},{"$f":"VLOOKUP(F344, Marks!$B$3:$AI$22,32,0)","v":6},null,null,{"$f":"_xlfn.IFS(F362>F357,\"ناجح\",F362<F357,\"راسب\",F362=F357,\"ناجح\")","v":"ناجح"}]
[]
[]
[]
["TOTAL ",{"$f":"Marks!$AH$6","v":420},{"$f":"VLOOKUP(F344,Marks!$B$3:AH344,33,0)","v":253}]
[]
["PRINCIPAL COMMENT ",null,null,null,null,"PARENTS SIGNATURE"]